Workbook

Sheet Member
A1: Futurity | B1: Der | C1: Age Inct. | D1: BBR | E1: Draw | F1: Rider Name | G1: Horse Name | H1: c/o | I1: Time | J1: Final Time | K1: Placing | L1: Money Earned
E2: 1 | F2: Nisa Berry | G2: VF Look Im Back | I2: 15.525 | K2: 1D 1st | L2: 851.4
E3: 2 | F3: Sherri Barnes | G3: Famous Little Jet | I3: 15.831 | K3: 1D 2nd | L3: 696.6
E4: 3 | F4: Nicki Zimmerman | G4: Prime Gold | I4: 15.9 | K4: 1D 3rd | L4: 516
E5: 4 | F5: Lisa Thornton | G5: Straight Toasted | I5: 15.929 | K5: 1D 4th | L5: 335.4
E6: 5 | F6: Brian Ramirez | G6: Holly | I6: 15.986 | K6: 1D 5th | L6: 180.6
E7: 6 | F7: Sherri Barnes | G7: Racing For Perks | I7: 16.016
E8: 7 | F8: Sadie Weldon | G8: Boots Classy Perks | I8: 16.155 | K8: 2D 1st | L8: 709.5
E9: 8 | F9: Mindy Holloway | G9: First Rappin Judge | I9: 16.236 | K9: 2D 2nd | L9: 580.5
E10: 9 | F10: Lisa Wernli | G10: Proudtobefrench | I10: 16.272 | K10: 2D 3rd | L10: 430
E11: 10 | F11: Casey Hammons | G11: BH Trip Ta Fame | I11: 16.295 | K11: 2D 4th | L11: 279.5
E12: 11 | F12: Becky Dillard | G12: Wow Shes Hot | I12: 16.379 | K12: 2D 5th | L12: 150.5
E13: 12 | F13: Davie King | G13: RR | I13: 16.404
E14: 13 | F14: Rachel Primm | G14: Guys Amberetto | I14: 16.411
E15: 14 | F15: Scamper Cole | G15: VF Eddie Flashed Me | I15: 16.425
E16: 15 | F16: Martha Jordan | G16: JL Fourtafame | I16: 16.459
E17: 16 | F17: Jolene Jones | G17: Streakin Louie | I17: 16.492
E18: 17 | F18: Sally Preston | G18: Cee U Later Gator | I18: 16.512
E19: 18 | F19: Misty Peek | G19: Amos | I19: 16.534 | K19: 3D 1st | L19: 567.6
E20: 19 | F20: Jo Kirby | G20: Heavenly Joak | I20: 16.581 | K20: 3D 2nd | L20: 464.4
E21: 20 | F21: Wendy Weems | G21: Brick | I21: 16.607 | K21: 3D 3rd | L21: 344
E22: 21 | F22: Jamie Wilson | G22: Check Your Bet | I22: 16.631 | K22: 3D 4th | L22: 223.6
E23: 22 | F23: Lisa Wernli | G23: Babe On The Run | I23: 16.632 | K23: 3D 5th | L23: 120.4
E24: 23 | F24: Nisa Berry | G24: No Effort Makin Cash | I24: 16.655
E25: 24 | F25: Terry Quintana | G25: Rappin Ole Tom | I25: 16.689
E26: 25 | F26: Sadie Weldon | G26: WB Runaway Pumpkin | I26: 16.718
E27: 26 | F27: Christi Durfey | G27: Banking Ta Fame | I27: 16.733
E28: 27 | F28: Dee Dee Jordan | G28: Flame Flinging Rebel | I28: 16.737
E29: 28 | F29: Jessica Patanella | G29: Ann Get Your Gun | I29: 16.739
E30: 29 | F30: Hadley Durfey | G30: Delightful Brownies | I30: 16.742
E31: 30 | F31: Lindsey Stevens | G31: JM I Got Faith | I31: 16.755
E32: 31 | F32: Pattie Mackie | G32: Flitter Fuel Lad | I32: 16.797
E33: 32 | F33: Kylee Schribner | G33: Sister | I33: 16.805
E34: 33 | F34: Jenna Napier | G34: Frenchmans Dually | I34: 16.814
E35: 34 | F35: Kristi Smith | G35: ELS Dynaflow Hooter | I35: 16.815
E36: 35 | F36: Gretchen Goedecken | G36: Fine Whatever | I36: 16.826
E37: 36 | F37: Karen Shelley | G37: Flynig Bar bailey | I37: 16.828
E38: 37 | F38: Karen Manning | G38: Shut The Train Door | I38: 16.893
E39: 38 | F39: Kelsey Howard | G39: Midnight DJ | I39: 16.897
E40: 39 | F40: Jane Fambro | G40: Willows French Girl | I40: 16.955
E41: 40 | F41: Simone Elmore | G41: Badger A Conchadrift | I41: 17.011
E42: 41 | F42: Dee Dee Jordan | G42: Lil Yella Draw | I42: 17.014
E43: 42 | F43: Gretchen Goedecken | G43: Pretty Bay Pony | I43: 17.06 | K43: 4D 1st | L43: 425.7
E44: 43 | F44: Kylee Schribner | G44: Firewater Cartel | I44: 17.084 | K44: 4D 2nd | L44: 348.3
E45: 44 | F45: Brian Ramirez | G45: QHR Famous Bully | I45: 17.108 | K45: 4D 3rd | L45: 258
E46: 45 | F46: Jolie Smith | G46: Docs Lil Leo | I46: 17.116 | K46: 4D 4th | L46: 167.7
E47: 46 | F47: Kendall Jordan | G47: Guns On Fire | I47: 17.15 | K47: 4D 5th | L47: 90.3
E48: 47 | F48: Kristi Smith | G48: Frenchmans Playgun | I48: 17.153
E49: 48 | F49: Pattie Mackie | G49: Dunnits Genuine 007 | I49: 17.156
E50: 49 | F50: LJ LaRue | G50: Boogie Barnes | I50: 17.166
E51: 50 | F51: Tiffany Durham | G51: Joaks Rolling Smoke | I51: 17.199
E52: 51 | F52: Kim Eisen | G52: Dollar | I52: 17.218
E53: 52 | F53: Jolene Jones | G53: Peppys Streakof Fame | I53: 17.218
E54: 53 | F54: Jessica Patanella | G54: Easy Ole Pistol | I54: 17.255
E55: 54 | F55: Nisa Berry | G55: Code Name Fame | I55: 17.321
E56: 55 | F56: Janee' Ornelas | I56: 17.387
E57: 56 | F57: Davie King | G57: Lorenzo | I57: 17.47
E58: 57 | F58: Timberly Erickson | G58: Mines Fast | I58: 17.479
E59: 58 | F59: Lisa Jo Velliquette | G59: Namgis D 44 | I59: 17.542 | K59: 5D 1st | L59: 283.8
E60: 59 | F60: Whitney Fisher | G60: BB French N Easy | I60: 17.603 | K60: 5D 2nd | L60: 232.2
E61: 60 | F61: LeAnn Wills | G61: Yahoo Too | I61: 17.625 | K61: 5D 3rd | L61: 172
E62: 61 | F62: Tiffany Durham | G62: Dashin Luke Perry | I62: 17.635 | K62: 5D 4th | L62: 111.8
E63: 62 | F63: Pattie Mackie | G63: Frosty Six Moons | I63: 17.654 | K63: 5D 5th | L63: 60.2
E64: 63 | F64: Janee' Ornelas | G64: H3 | I64: 17.682
E65: 64 | F65: Tiffany Durham | G65: Colones Kerosene | I65: 17.9
E66: 65 | F66: Tiffany Durham | G66: Spect Snow | I66: 18.08
E67: 66 | F67: Kevin Davis | G67: Gibbs | I67: 18.148
E68: 67 | F68: Lylan Corey | G68: Shesa Fancy Cat | I68: 18.239
E69: 68 | F69: Gretchen Goedecken | G69: Spots In My Dreams | I69: 18.416
E70: 69 | F70: Sherrel Burgess | G70: Boomer T Fellers | I70: 18.44
E71: 70 | F71: Jenna Napier | G71: Freeky La Jolla | I71: 18.627
E72: 70
E73: 71
E74: 72
E75: 73
E76: 74
E77: 75
E78: 76
E79: 77
E80: 78
E81: 79
E82: 80
E83: 81
E84: 176 | J84: =IF(OR(H84=5,H84=10, H84=15, H84="BP",H84="SCR"),"NT",I84) -> 0
E85: 177 | J85: 0
E86: 178 | J86: 0
E87: 179 | J87: 0
E88: 180 | J88: 0
E89: 181 | J89: 0
E90: 182 | J90: 0
E91: 183 | J91: 0
E92: 184 | J92: 0
E93: 185 | J93: 0
E94: 186 | J94: 0
E95: 187 | J95: 0
E96: 188 | J96: 0
E97: 189 | J97: 0
E98: 190 | J98: 0
E99: 191 | J99: 0
E100: 192 | J100: 0
E101: 193 | J101: 0
E102: 194 | J102: 0
E103: 195 | J103: 0
E104: 196 | J104: 0
E105: 197 | J105: 0
E106: 198 | J106: 0
E107: 199 | J107: 0
E108: 200 | J108: 0
E109: 201 | J109: 0
E110: 202 | J110: 0
E111: 203 | J111: 0
E112: 204 | J112: 0
E113: 205 | J113: 0
E114: 206 | J114: 0
E115: 207 | J115: 0
E116: 208 | J116: 0
E117: 209 | J117: 0
E118: 210 | J118: 0
E119: 211 | J119: 0
E120: 212 | J120: 0
E121: 213 | J121: 0
E122: 214 | J122: 0
E123: 215 | J123: 0
E124: 216 | J124: 0
E125: 217 | J125: 0
E126: 218 | J126: 0
E127: 219 | J127: 0
E128: 220 | J128: 0
E129: 221 | J129: 0
E130: 222 | J130: 0
E131: 223 | J131: 0
E132: 224 | J132: 0
E133: 225 | J133: 0
E134: 226 | J134: 0
E135: 227 | J135: 0
E136: 228 | J136: 0
E137: 229 | J137: 0
E138: 230 | J138: 0
E139: 231 | J139: =IF(OR(H139=5,H139=10, H139=15, H139="BP",H139="SCR"),"NT",I139) -> 0
E140: 232 | J140: 0
E141: 233 | J141: 0
E142: 234 | J142: 0
E143: 235 | J143: 0
E144: 236 | J144: 0
E145: 237 | J145: 0
E146: 238 | J146: 0
E147: 239 | J147: 0
E148: 240 | J148: 0
E149: 241 | J149: 0
E150: 242 | J150: 0
E151: 243 | J151: 0
E152: 244 | J152: 0
E153: 245 | J153: 0
E154: 246 | J154: 0
E155: 247 | J155: 0
E156: 248 | J156: 0
E157: 249 | J157: 0
E158: 250 | J158: 0
E159: 251 | J159: 0
E160: 252 | J160: 0
E161: 253 | J161: 0
E162: 254 | J162: 0
E163: 255 | J163: 0
E164: 256 | J164: 0
E165: 257 | J165: 0
E166: 258 | J166: 0
E167: 259 | J167: 0
E168: 260 | J168: 0
E169: 261 | J169: 0
E170: 262 | J170: 0
E171: 263 | J171: 0
E172: 264 | J172: 0
E173: 265 | J173: 0
E174: 266 | J174: 0
E175: 267 | J175: 0
E176: 268 | J176: 0
E177: 269 | J177: 0
E178: 270 | J178: 0
E179: 271 | J179: 0
E180: 272 | J180: 0
E181: 273 | J181: 0
E182: 274 | J182: 0
E183: 275 | J183: 0
E184: 276 | J184: 0
E185: 277 | J185: 0
E186: 278 | J186: 0
E187: 279 | J187: 0
E188: 280 | J188: 0
E189: 281 | J189: 0
E190: 282 | J190: 0
E191: 283 | J191: 0
E192: 284 | J192: 0
E193: 285 | J193: 0
E194: 286 | J194: 0
E195: 287 | J195: 0
E196: 288 | J196: 0
E197: 289 | J197: 0
E198: 290 | J198: 0
E199: 291 | J199: 0
E200: 292 | J200: 0
... 8 more rows

Sheet Open
A2: Mighty Corona 12.21.19 $2000 Open
A3: FUT | B3: DER | C3: Age Inc | D3: HS | E3: Member | F3: Draw | G3: Rider Name | H3: Horse Name | I3: Pen | J3: Time | K3: Final Time | L3: Placing | M3: Money Earned | O3: D Placing | Q3: Split
E4: X | F4: 118 | G4: Nisa Berry | H4: VF Look Im Back | J4: 15.525 | L4: 1D 1st | M4: 1008 | O4: 1D
B5: X | F5: 301 | G5: Shelley Morgan | H5: Kinda Heavenly | J5: 15.602 | L5: 1D 2nd | M5: 840 | O5: 2D | Q5: 0.5
C6: A | D6: X | F6: 243 | G6: Helen Nowosad | H6: Raise The Gold Bar | J6: 15.627 | L6: 1D 3rd | M6: 714 | O6: 3D | Q6: 0.5
B7: X | C7: A | D7: X | F7: 67 | G7: Tiany Schuster | H7: Micguyver | J7: 15.708 | L7: 1D 4th | M7: 546 | O7: 4D | Q7: 0.5
F8: 244 | G8: Cheyenne Wimberly | H8: Royal Blue Flame | J8: 15.725 | L8: 1D 5th | M8: 420 | O8: 5D | Q8: 0.5
D9: X | F9: 94 | G9: Deann Morgan | H9: Colour Me Fast | J9: 15.758 | L9: 1D 6th | M9: 294
B10: X | D10: X | F10: 287 | G10: Shelley Morgan | H10: HR Fameskissandtell | J10: 15.771 | L10: 1D 7th | M10: 210 | O10: # Entered
C11: Y | F11: 246 | G11: Micah Wallace | H11: Pockets | J11: 15.809 | L11: 1D 8th | M11: 168 | O11: =COUNTA(G4:G503) -> 304
C12: S | E12: X | F12: 147 | G12: Sherri Barnes | H12: Famous Little Jet | J12: 15.831
C13: A | D13: X | F13: 23 | G13: Tiany Schuster | H13: Showmance | J13: 15.835 | O13: # Ran
B14: X | F14: 197 | G14: Cassidy Champlin | H14: Takin On A Storm | J14: 15.88 | O14: =COUNTA(J4:J503) -> 304
C15: A | F15: 108 | G15: Andrea Busby | H15: Famous Hertbreaker | J15: 15.887
B16: X | C16: Y | D16: X | F16: 129 | G16: Rylee Hardin | H16: Jesssuperfly | J16: 15.891 | O16: # Left
E17: X | F17: 139 | G17: Nicki Zimmerman | H17: Prime Gold | J17: 15.9 | O17: =$O$11-$O$14 -> 0
F18: 231 | G18: Bobbie Grann | H18: Sun Zip Dasher | J18: 15.9
D19: X | E19: X | F19: 96 | G19: Lisa Thornton | H19: Straight Toasted | J19: 15.929
B20: X | C20: A | F20: 167 | G20: Shelby Janssen | H20: Shes A Man Eater | J20: 15.944
E21: X | F21: 253 | G21: Brian Ramirez | H21: Holly | J21: 15.986
C22: S | E22: X | F22: 113 | G22: Sherri Barnes | H22: Racing For Perks | J22: 16.016
D23: X | F23: 236 | G23: Ashley Crow | H23: Willie B Firewater | J23: 16.016
F24: 198 | G24: Debbie Richardson | H24: Call Me Misty May | J24: 16.034 | L24: 2D 1st | M24: 840
A25: X | F25: 13 | G25: Billie Ann Harmon | H25: Me Flingin Diamonds | J25: 16.061 | L25: 2D 2nd | M25: 700
C26: A | D26: X | F26: 134 | G26: Kara Large | H26: Credit To Fiesta | J26: 16.071 | L26: 2D 3rd | M26: 595
B27: X | C27: A | D27: X | F27: 162 | G27: Kara Large | H27: RSL FirstRoyalEddie | J27: 16.075 | L27: 2D 4th | M27: 455
C28: Y | F28: 245 | G28: Steely Steiner | H28: Teena Turner | J28: 16.084 | L28: 2D 5th | M28: 350
F29: 63 | G29: Wendy Suhn | H29: HLH Streain A Fling | J29: 16.098 | L29: 2D 6th | M29: 245
F30: 210 | G30: Brittany Mayfield | H30: Jewels Inmy ROlex | J30: 16.112 | L30: 2D 7th | M30: 175
C31: A | D31: X | F31: 201 | G31: Shelby Janssen | H31: Famous Amous | J31: 16.142 | L31: 2D 8th | M31: 140
D32: X | F32: 211 | G32: Molly Childers | H32: Just My Choice | J32: 16.148
E33: X | F33: 241 | G33: Sadie Weldon | H33: Boots Classy Perks | J33: 16.155
F34: 263 | G34: Bobbie Grann | H34: Ernesto Valdez | J34: 16.187
B35: X | C35: S | F35: 239 | G35: Jody Cousins | H35: Abaileysflashlight | J35: 16.188
F36: 200 | G36: Bobbie Grann | H36: DMO Dashin North | J36: 16.216
F37: 178 | G37: Brittany Mayfield | H37: Crystal Got Class | J37: 16.224
F38: 267 | G38: Riley Cook | H38: Crown Royal Morning | J38: 16.224
F39: 145 | G39: Lessa Wahlenmaier | H39: ConfederateFirinMoon | J39: 16.23
E40: X | F40: 234 | G40: Mindy Holloway | H40: First Rappin Judge | J40: 16.236
B41: X | F41: 264 | G41: Benjamin Beall | H41: Dashing Romeo | J41: 16.244
F42: 303 | G42: Marissa Burger | J42: 16.25
F43: 97 | G43: Wendy Suhn | H43: She B Astreakin | J43: 16.258
F44: 304 | G44: Darby Fox | J44: 16.261
E45: X | F45: 141 | G45: Lisa Wernli | H45: Proudtobefrench | J45: 16.272
C46: S | F46: 180 | G46: Robin Kuhnhein | H46: MR JB Chasin Roses | J46: 16.274
F47: 230 | G47: Jessie Domann | H47: Ima Perry N Famous | J47: 16.286
F48: 9 | G48: Maggie Pytlik | H48: Karma | J48: 16.287
E49: X | F49: 131 | G49: Casey Hammons | H49: BH Trip Ta Fame | J49: 16.295
F50: 224 | G50: Kathy Fields | H50: Regarding Numbers | J50: 16.302
F51: 240 | G51: Riley Fountain | H51: Royal Dame Ta Fame | J51: 16.308
B52: X | F52: 165 | G52: Cassidy Champlin | H52: Wood Bea French Girl | J52: 16.344
F53: 213 | G53: Steely Steiner | H53: Hillbilly Bombshell | J53: 16.352
F54: 271 | G54: Sharin Hall | H54: Famous Bullion | J54: 16.357
A55: X | F55: 117 | G55: Ashley Schaffer | H55: Positivelty Smooth | J55: 16.369
E56: X | F56: 158 | G56: Becky Dillard | H56: Wow Shes Hot | J56: 16.379
C57: A | F57: 174 | G57: Elyse Busby | H57: Knflingingbutterscotch | J57: 16.381
F58: 51 | G58: Emilie Veillette | H58: SV Burnin Wonder | J58: 16.382
E59: X | F59: 59 | G59: Davie King | H59: RR | J59: 16.404
E60: X | F60: 109 | G60: Rachel Primm | H60: Guys Amberetto | J60: 16.411
C61: A | D61: X | F61: 122 | G61: Tiany Schuster | H61: Version Six | J61: 16.414
F62: 222 | G62: Tasha Welsh | H62: Andres Dirt Eater | J62: 16.415
E63: X | F63: 150 | G63: Scamper Cole | H63: VF Eddie Flashed Me | J63: 16.425
A64: X | F64: 37 | G64: Kristen Hendewerk | H64: Tennessee Fuel | J64: 16.444
C65: Y | F65: 186 | G65: Rylee Hardin | H65: SAVelvets Dual Pep | J65: 16.446
F66: 25 | G66: Wendy Suhn | H66: Hes Just A Fling | J66: 16.449
C67: S | F67: 86 | G67: Terri Stitle | H67: Rapido Rose | J67: 16.454
F68: 252 | G68: Rosie Bradley | H68: Gunner | J68: 16.455
F69: 21 | G69: Kerrie Cannon | H69: Patch | J69: 16.458
C70: S | D70: X | E70: X | F70: 126 | G70: Martha Jordan | H70: JL Fourtafame | J70: 16.459
A71: X | F71: 142 | G71: Bugg Beeler | H71: JKL Letterflyreba | J71: 16.459
F72: 189 | G72: Becky Dillard | H72: Shesa Hot Loop | J72: 16.485
C73: S | E73: X | F73: 193 | G73: Jolene Jones | H73: Streakin Louie | J73: 16.492
C74: A | F74: 298 | G74: Jamie Cramblit | H74: Pipers Magic | J74: 16.505
F75: 191 | G75: Tasha Welsh | H75: Shaken Up Guys | J75: 16.506
B76: X | C76: Y | F76: 266 | G76: Jaden Nowosad | H76: Nicks Famous Deal | J76: 16.508
E77: X | F77: 111 | G77: Sally Preston | H77: Cee U Later Gator | J77: 16.512
F78: 183 | G78: Deanna DeKay | H78: Pepto In the Mist | J78: 16.516
A79: X | F79: 42 | G79: Billie Ann Harmon | H79: Bug On Firewater | J79: 16.518
F80: 116 | G80: Callie Jo Surles | H80: Frenchieslightoncash | J80: 16.518
F81: 292 | G81: Lacy Billingsley | H81: Dirty Disco Diane | J81: 16.523
C82: S | F82: 91 | G82: Lee Vogel | H82: BBBoogyingfrenchman | J82: 16.526 | L82: 3D 1st | M82: 672
F83: 163 | G83: Hannah Hertel | H83: Egos Moving Effort | J83: 16.531 | L83: 3D 2nd | M83: 560
E84: X | F84: 11 | G84: Misty Peek | H84: Amos | J84: 16.534 | L84: 3D 3rd | M84: 476
F85: 188 | G85: Jessie Kate Cole | H85: Rey Jay Bar Azucar | J85: 16.536 | L85: 3D 4th | M85: 364
F86: 219 | G86: Kayli Morris | H86: Fortune In Fuel | J86: 16.555 | L86: 3D 5th | M86: 280
C87: A | F87: 214 | G87: Kylee Cook | H87: Executing The Cause | J87: 16.575 | L87: 3D 6th | M87: 196
C88: S | F88: 98 | G88: Jacque Woolman | H88: Return A Fortune | J88: 16.579 | L88: 3D 7th | M88: 140
E89: X | F89: 238 | G89: Jo Kirby | H89: Heavenly Joak | J89: 16.581 | L89: 3D 8th | M89: 112
E90: X | F90: 34 | G90: Wendy Weems | H90: Brick | J90: 16.607
A91: X | F91: 5 | G91: Ashley Schaffer | H91: Famous Party Guy | J91: 16.608
F92: 228 | G92: Jackie hartt | H92: VF Blazin Hotpants | J92: 16.608
C93: A | D93: X | E93: X | F93: 223 | G93: Jamie Wilson | H93: Check Your Bet | J93: 16.631
E94: X | F94: 205 | G94: Lisa Wernli | H94: Babe On The Run | J94: 16.632
E95: X | F95: 215 | G95: Nisa Berry | H95: No Effort Makin Cash | J95: 16.655
F96: 138 | G96: Jane Fambro | H96: My Guy Can Fly | J96: 16.66
E97: X | F97: 45 | G97: Daryll Kessler | H97: Irish Firewater | J97: 16.67
A98: X | F98: 55 | G98: Lisa Thornton | H98: Trixxi | J98: 16.677
A99: X | F99: 169 | G99: Molly Childers | H99: Dash Ta Special | J99: 16.681
C100: S | E100: X | F100: 286 | G100: Terry Quintana | H100: Rappin Ole Tom | J100: 16.689
F101: 48 | G101: Jana Perry | H101: MP Get Ther Money | J101: 16.711
E102: X | F102: 207 | G102: Sadie Weldon | H102: WB Runaway Pumpkin | J102: 16.718
F103: 256 | G103: Darby Fox | J103: 16.722
F104: 255 | G104: Mandy Smith | H104: Twister | J104: 16.725
E105: X | F105: 159 | G105: Christi Durfey | H105: Banking Ta Fame | J105: 16.733
C106: S | E106: X | F106: 52 | G106: Dee Dee Jordan | H106: Flame Flinging Rebel | J106: 16.737
E107: X | F107: 161 | G107: Jessica Patanella | H107: Ann Get Your Gun | J107: 16.739
E108: X | F108: 196 | G108: Nikki Cain | H108: Compromised Perks | J108: 16.739
E109: X | F109: 105 | G109: Hadley Durfey | H109: Delightful Brownies | J109: 16.742
A110: X | C110: S | F110: 39 | G110: Kelly Bruner | H110: LLP Shadrach | J110: 16.743
E111: X | F111: 160 | G111: Nikki Cain | H111: Smooth Finances | J111: 16.746
C112: A | E112: X | F112: 175 | G112: Lindsey Stevens | H112: JM I Got Faith | J112: 16.755
C113: A | F113: 103 | G113: Jessica McBain | H113: Ruumble Gun | J113: 16.761
C114: S | F114: 28 | G114: Cindy Sipe | H114: DDD Chargingupthejet | J114: 16.761
F115: 154 | G115: Kelli Acreman | H115: DK Buggin On Fame | J115: 16.767
C116: Y | F116: 31 | G116: Aspen Adams | H116: DDD Lil Peppy Stitch | J116: 16.775
E117: X | F117: 47 | G117: Kelsey Howard | H117: BB Sheza Filaree | J117: 16.784
C118: A | E118: X | F118: 212 | G118: Lindsey Stevens | H118: Wadafire | J118: 16.79
F119: 22 | G119: Katie Weaver | H119: La Epica | J119: 16.79
B120: X | F120: 291 | G120: Erika Ashley | H120: Freight Train C | J120: 16.793
E121: X | F121: 100 | G121: Pattie Mackie | H121: Flitter Fuel Lad | J121: 16.797
E122: X | F122: 133 | G122: Kylee Schribner | H122: Sister | J122: 16.805
C123: A | F123: 76 | G123: Andrea Busby | H123: Guys Girl Power | J123: 16.812
E124: X | F124: 54 | G124: Jenna Napier | H124: Frenchmans Dually | J124: 16.814
E125: X | F125: 66 | G125: Kristi Smith | H125: ELS Dynaflow Hooter | J125: 16.815
C126: S | F126: 144 | G126: Shawn Fields | H126: Neat Little Lena | J126: 16.819
F127: 120 | G127: Presleigh Akers | H127: Short Nitalena | J127: 16.821
E128: X | F128: 136 | G128: Gretchen Goedecken | H128: Fine Whatever | J128: 16.826
C129: A | E129: X | F129: 84 | G129: Karen Shelley | H129: Flynig Bar bailey | J129: 16.828
F130: 53 | G130: Josianne St-Cyr | H130: Spyder | J130: 16.831
A131: x | F131: 36 | G131: Ashley Schaffer | H131: Boonsstreakincolours | J131: 16.839
F132: 132 | G132: Amy Ferguson | H132: Last Dollar Gal | J132: 16.846
E133: X | F133: 1 | G133: Daryll Kessler | H133: Shes So Slick | J133: 16.856
E134: X | F134: 128 | G134: Scamper Cole | H134: Hez Our Big Secret | J134: 16.877
E135: X | F135: 74 | G135: Karen Manning | H135: Shut The Train Door | J135: 16.893
E136: X | F136: 114 | G136: Kelsey Howard | H136: Midnight DJ | J136: 16.897
F137: 4 | G137: Shannon Black | H137: TS Jets Blazin Lena | J137: 16.898
F138: 192 | G138: Kelli Acreman | H138: Star War Fabio | J138: 16.926
C139: A | F139: 70 | G139: Billie Ann Harmon | H139: Guys Got Fuel | J139: 16.952
E140: X | F140: 170 | G140: Jane Fambro | H140: Willows French Girl | J140: 16.955
F141: 75 | G141: Kim Otwell | H141: Boot Justalena | J141: 16.989
C142: S | E142: X | F142: 229 | G142: Simone Elmore | H142: Badger A Conchadrift | J142: 17.011
E143: X | F143: 177 | G143: Nicki Zimmerman | H143: StreakinN Famous | J143: 17.013
C144: S | E144: X | F144: 6 | G144: Dee Dee Jordan | H144: Lil Yella Draw | J144: 17.014
F145: 40 | G145: Tristen Spivey | H145: Peppys Hot Spice | J145: 17.029 | L145: 4D 1st | M145: 504
C146: S | E146: X | F146: 89 | G146: Terry Vogel | H146: Imablueydblondbitz | J146: 17.044 | L146: 4D 2nd | M146: 420
F147: 81 | G147: Kelsey Howard | H147: Triple Gold Time | J147: 17.057 | L147: 4D 3rd | M147: 357
E148: X | F148: 242 | G148: Gretchen Goedecken | H148: Pretty Bay Pony | J148: 17.06 | L148: 4D 4th | M148: 273
A149: X | E149: X | F149: 110 | G149: Kylee Schribner | H149: Firewater Cartel | J149: 17.084 | L149: 4D 5th | M149: 210
F150: 29 | G150: Sara Redden | H150: Pedro | J150: 17.088 | L150: 4D 6th | M150: 147
F151: 208 | G151: Lessa Wahlenmaier | H151: Hoku Pele Bluegrass | J151: 17.104 | L151: 4D 7th | M151: 105
F152: 261 | G152: Robin Schmidt | H152: Cash Is Pretty Mama | J152: 17.108 | L152: 4D 8th/9th | M152: 42
E153: X | F153: 288 | G153: Brian Ramirez | H153: QHR Famous Bully | J153: 17.108 | L153: 4D 8th/9th | M153: 42
F154: 8 | G154: Jacquelyn Jones | H154: Kate | J154: 17.112
C155: Y | E155: X | F155: 14 | G155: Jolie Smith | H155: Docs Lil Leo | J155: 17.116
F156: 50 | G156: Lisa Lucia | H156: Sticks Chic | J156: 17.136
E157: X | F157: 92 | G157: Kendall Jordan | H157: Guns On Fire | J157: 17.15
E158: X | F158: 30 | G158: Kristi Smith | H158: Frenchmans Playgun | J158: 17.153
E159: X | F159: 173 | G159: Pattie Mackie | H159: Dunnits Genuine 007 | J159: 17.156
E160: X | F160: 82 | G160: LJ LaRue | H160: Boogie Barnes | J160: 17.166
F161: 90 | G161: Peyton Stepanoff | H161: BND Unapalogetic | J161: 17.176
C162: A | F162: 143 | G162: Kit Miller | H162: Leans Rockn New Time | J162: 17.192
C163: A | E163: X | F163: 83 | G163: Tiffany Durham | H163: Joaks Rolling Smoke | J163: 17.199
E164: X | F164: 43 | G164: Kim Eisen | H164: Dollar | J164: 17.218
E165: X | F165: 155 | G165: Jolene Jones | H165: Peppys Streakof Fame | J165: 17.218
E166: X | F166: 194 | G166: Jessica Patanella | H166: Easy Ole Pistol | J166: 17.255
E167: X | F167: 127 | G167: Christi Durfey | H167: Jess Blazin Otoe | J167: 17.285
F168: 218 | G168: Lacey Edgmon | H168: RC Miss Blue Cowan | J168: 17.298
C169: S | F169: 283 | G169: Margaret Tully | H169: Hands Oklahoma Boone | J169: 17.32
B170: X | E170: X | F170: 151 | G170: Nisa Berry | H170: Code Name Fame | J170: 17.321
C171: A | F171: 290 | G171: Brennan Gibbs | H171: Prefers Mitos Cash | J171: 17.344
C172: A | F172: 217 | G172: Megan Mack | H172: Chic Pleez Shine | J172: 17.359
F173: 106 | G173: Blair Scherr | H173: Cash Naturally | J173: 17.364
F174: 280 | G174: Katie Davis | H174: Bob | J174: 17.374
E175: X | F175: 232 | G175: Janee' Ornelas | J175: 17.387
F176: 250 | G176: Davie King | H176: Lorenzo | J176: 17.47
F177: 258 | G177: Natalie Covington | H177: Stormy | J177: 17.475
F178: 300 | G178: Olivia Robinson | H178: Lily Blue Bar | J178: 17.476
E179: X | F179: 299 | G179: Timberly Erickson | H179: Mines Fast | J179: 17.479
F180: 17 | G180: Tasha Welsh | H180: Sr Epic Wildcatter | J180: 17.492
F181: 135 | G181: Debbie Richardson | H181: Shakeemup Again | J181: 17.5
E182: X | F182: 203 | G182: Jane Fambro | H182: Crusher Long Legs | J182: 17.5
A183: X | F183: 279 | G183: Ashley Sims | H183: MS Double Frost | J183: 17.513
E184: X | F184: 221 | G184: Lisa Jo Velliquette | H184: Namgis D 44 | J184: 17.542 | L184: 5D 1st | M184: 336
F185: 195 | G185: Kara Large | H185: Chic | J185: 17.584 | L185: 5D 2nd | M185: 280
C186: A | F186: 10 | G186: Kalie Cook | H186: Zanzibar Hawk | J186: 17.597 | L186: 5D 3rd | M186: 238
C187: A | E187: X | F187: 44 | G187: Whitney Fisher | H187: BB French N Easy | J187: 17.603 | L187: 5D 4th | M187: 182
C188: S | E188: X | F188: 49 | G188: LeAnn Wills | H188: Yahoo Too | J188: 17.625 | L188: 5D 5th | M188: 140
A189: X | F189: 68 | G189: Ashley Schaffer | H189: French Streakin Slew | J189: 17.626 | L189: 5D 6th | M189: 98
C190: A | E190: X | F190: 171 | G190: Tiffany Durham | H190: Dashin Luke Perry | J190: 17.635 | L190: 5D 7th | M190: 70
F191: 262 | G191: Amber Gruss | H191: Sweetpea | J191: 17.644 | L191: 5D 8th | M191: 56
E192: X | F192: 137 | G192: Pattie Mackie | H192: Frosty Six Moons | J192: 17.654
F193: 179 | G193: Aubrey Hollifield | H193: Blaze | J193: 17.678
E194: X | F194: 270 | G194: Janee' Ornelas | H194: H3 | J194: 17.682
C195: A | F195: 249 | G195: Susan Agnew | H195: Splash Da Firewater | J195: 17.72
F196: 199 | G196: Hannah Hertel | H196: Zeus | J196: 17.733
E197: X | F197: 273 | G197: Emily Necaise | H197: Famous Dash ta Vegas | J197: 17.762
F198: 27 | G198: Colt Tew | H198: Annie | J198: 17.763
C199: Y | F199: 124 | G199: Mikayla Cearley | H199: TF Peppysmokensavage | J199: 17.775
E200: X | F200: 104 | G200: Karissa Jones | H200: Anita Lot Of Cash | J200: 17.819
F201: 176 | G201: Lessa Wahlenmaier | H201: DDD Citisun Lynx | J201: 17.857
... 302 more rows

Sheet Senior
A1: Futurity | B1: Der | C1: Age Inct. | D1: BBR | E1: Draw | F1: Rider Name | G1: Horse Name | H1: Pen | I1: Time | J1: Final Time | K1: Placing | L1: Money Earned
E2: 1 | F2: Sherri Barnes | G2: Famous Little Jet | I2: 15.831 | K2: 1D 1st | L2: 121.8
E3: 2 | F3: Sherri Barnes | G3: Racing For Perks | I3: 16.016 | K3: 1D 2nd | L3: 81.2
E4: 3 | F4: Jody Cousins | G4: Abaileysflashlight | I4: 16.188
E5: 4 | F5: Robin Kuhnhein | G5: MR JB Chasin Roses | I5: 16.274
E6: 5 | F6: Terri Stitle | G6: Rapido Rose | I6: 16.454 | K6: 2D 1st | L6: 104
E7: 6 | F7: Martha Jordan | G7: JL Fourtafame | I7: 16.459 | K7: 2D 2nd | L7: 70
E8: 7 | F8: Jolene Jones | G8: Streakin Louie | I8: 16.492
E9: 8 | F9: Lee Vogel | G9: BBBoogyingfrenchman | I9: 16.526
E10: 9 | F10: Jacque Woolman | G10: Return A Fortune | I10: 16.579
E11: 10 | F11: Terry Quintana | G11: Rappin Ole Tom | I11: 16.689
E12: 11 | F12: Dee Dee Jordan | G12: Flame Flinging Rebel | I12: 16.737
E13: 12 | F13: Kelly Bruner | G13: LLP Shadrach | I13: 16.743
E14: 13 | F14: Cindy Sipe | G14: DDD Chargingupthejet | I14: 16.761
E15: 14 | F15: Shawn Fields | G15: Neat Little Lena | I15: 16.819
E16: 15 | F16: Simone Elmore | G16: Badger A Conchadrift | I16: 17.011 | K16: 3D 1st | L16: 70
E17: 16 | F17: Dee Dee Jordan | G17: Lil Yella Draw | I17: 17.014 | K17: 3D 2nd | L17: 46
E18: 17 | F18: Terry Vogel | G18: Imablueydblondbitz | I18: 17.044
E19: 18 | F19: Margaret Tully | G19: Hands Oklahoma Boone | I19: 17.32
E20: 19 | F20: LeAnn Wills | G20: Yahoo Too | I20: 17.625 | K20: 4D 1st | L20: 52
E21: 20 | F21: Sherrel Burgess | G21: Boomer T Fellers | I21: 18.44 | K21: 4D 2nd | L21: 35
E22: 21 | F22: Cindy Sipe | G22: DDD First Down Penny | I22: 18.799
E23: 22 | F23: Wendy Weems | G23: Goin Slow | I23: nt15.942
E24: 23 | F24: Jacque Woolman | G24: Bar B Arabella Bug | I24: nt16.069
E25: 25 | F25: Sara Jo Lamb | G25: Takin On A Goldmine | I25: nt16.375
E26: 26 | F26: Connie Randolph | G26: Hot Rod Kitty Catt | I26: nt16.811
E27: 27 | F27: Kathy Vazquez | G27: Cool Ta Fame | I27: nt16.944
E28: 28 | F28: Kathy Vazquez | G28: Sail On Ta Fame | I28: nt17.219
E29: 29 | F29: Kelly Bruner | G29: Tuffernell | I29: nt17.310
E30: 30
E31: 31
E32: 32
E33: 24
E34: 33
E35: 34
E36: 35
E37: 36
E38: 37
E39: 38
E40: 39
E41: 40
E42: 41 | J42: =IF(OR(H42=5,H42=10, H42=15, H42="BP",H42="SCR"),"NT",I42) -> 0
E43: 42 | J43: 0
E44: 43 | J44: 0
E45: 44 | J45: 0
E46: 45 | J46: 0
E47: 46 | J47: 0
E48: 47 | J48: 0
E49: 48 | J49: 0
E50: 49 | J50: 0
E51: 50 | J51: 0
E52: 51 | J52: 0
E53: 52 | J53: 0
E54: 53 | J54: 0
E55: 54 | J55: 0
E56: 55 | J56: 0
E57: 56 | J57: 0
E58: 57 | J58: 0
E59: 58 | J59: 0
E60: 59 | J60: 0
E61: 60 | J61: 0
E62: 61 | J62: 0
E63: 62 | J63: 0
E64: 63 | J64: 0
E65: 64 | J65: 0
E66: 65 | J66: 0
E67: 66 | J67: 0
E68: 67 | J68: 0
E69: 68 | J69: 0
E70: 69 | J70: 0
E71: 70 | J71: 0
E72: 71 | J72: 0
E73: 72 | J73: 0
E74: 73 | J74: 0
E75: 74 | J75: 0
E76: 75 | J76: 0
E77: 76 | J77: 0
E78: 77 | J78: 0
E79: 78 | J79: 0
E80: 79 | J80: 0
E81: 80 | J81: 0
E82: 81 | J82: 0
E83: 82 | J83: 0
E84: 83 | J84: 0
E85: 84 | J85: 0
E86: 85 | J86: 0
E87: 86 | J87: 0
E88: 87 | J88: 0
E89: 88 | J89: 0
E90: 89 | J90: 0
E91: 90 | J91: 0
E92: 91 | J92: 0
E93: 92 | J93: 0
E94: 93 | J94: 0
E95: 94 | J95: 0
E96: 95 | J96: 0
E97: 96 | J97: 0
E98: 97 | J98: 0
E99: 98 | J99: 0
E100: 99 | J100: 0
E101: 100 | J101: 0
E102: 101 | J102: 0
E103: 102 | J103: 0
E104: 103 | J104: 0
E105: 104 | J105: 0
E106: 105 | J106: =IF(OR(H106=5,H106=10, H106=15, H106="BP",H106="SCR"),"NT",I106) -> 0
E107: 106 | J107: 0
E108: 107 | J108: 0
E109: 108 | J109: 0
E110: 109 | J110: 0
E111: 110 | J111: 0
E112: 111 | J112: 0
E113: 112 | J113: 0
E114: 113 | J114: 0
E115: 114 | J115: 0
E116: 115 | J116: 0
E117: 116 | J117: 0
E118: 117 | J118: 0
E119: 118 | J119: 0
E120: 119 | J120: 0
E121: 120 | J121: 0
E122: 121 | J122: 0
E123: 122 | J123: 0
E124: 123 | J124: 0
E125: 124 | J125: 0
E126: 125 | J126: 0
E127: 126 | J127: 0
E128: 127 | J128: 0
E129: 128 | J129: 0
E130: 129 | J130: 0
E131: 130 | J131: 0
E132: 131 | J132: 0
E133: 132 | J133: 0
E134: 133 | J134: 0
E135: 134 | J135: 0
E136: 135 | J136: 0
E137: 136 | J137: 0
E138: 137 | J138: 0
E139: 138 | J139: 0
E140: 139 | J140: 0
E141: 140 | J141: 0
E142: 141 | J142: 0
E143: 142 | J143: 0
E144: 143 | J144: 0
E145: 144 | J145: 0
E146: 145 | J146: 0
E147: 146 | J147: 0
E148: 147 | J148: 0
E149: 148 | J149: 0
E150: 149 | J150: 0
E151: 150 | J151: 0
E152: 151 | J152: 0
E153: 152 | J153: 0
E154: 153 | J154: 0
E155: 154 | J155: 0
E156: 155 | J156: 0
E157: 156 | J157: 0
E158: 157 | J158: 0
E159: 158 | J159: 0
E160: 159 | J160: 0
E161: 160 | J161: 0
E162: 161 | J162: 0
E163: 162 | J163: 0
E164: 163 | J164: 0
E165: 164 | J165: 0
E166: 165 | J166: 0
E167: 166 | J167: 0
E168: 167 | J168: 0
E169: 168 | J169: 0
E170: 169 | J170: =IF(OR(H170=5,H170=10, H170=15, H170="BP",H170="SCR"),"NT",I170) -> 0
E171: 170 | J171: 0
E172: 171 | J172: 0
E173: 172 | J173: 0
E174: 173 | J174: 0
E175: 174 | J175: 0
E176: 175 | J176: 0
E177: 176 | J177: 0
E178: 177 | J178: 0
E179: 178 | J179: 0
E180: 179 | J180: 0
E181: 180 | J181: 0
E182: 181 | J182: 0
E183: 182 | J183: 0
E184: 183 | J184: 0
E185: 184 | J185: 0
E186: 185 | J186: 0
E187: 186 | J187: 0
E188: 187 | J188: 0
E189: 188 | J189: 0
E190: 189 | J190: 0
E191: 190 | J191: 0
E192: 191 | J192: 0
E193: 192 | J193: 0
E194: 193 | J194: 0
E195: 194 | J195: 0
E196: 195 | J196: 0
E197: 196 | J197: 0
E198: 197 | J198: 0
E199: 198 | J199: 0
E200: 199 | J200: 0
... 101 more rows

Sheet Adult
A1: Futurity | B1: Der | C1: Age Inct. | D1: BBR | E1: Draw | F1: Rider Name | G1: Horse Name | H1: Pen | I1: Time | J1: Final Time | K1: Placing | L1: Money Earned
E2: 1 | F2: Helen Nowosad | G2: Raise The Gold Bar | I2: 15.627 | K2: 1D 1st | L2: 168
E3: 2 | F3: Tiany Schuster | G3: Micguyver | I3: 15.708 | K3: 1D 2nd | L3: 112
E4: 3 | F4: Tiany Schuster | G4: Showmance | I4: 15.835
E5: 4 | F5: Andrea Busby | G5: Famous Hertbreaker | I5: 15.887
E6: 5 | F6: Shelby Janssen | G6: Shes A Man Eater | I6: 15.944
E7: 6 | F7: Kara Large | G7: Credit To Fiesta | I7: 16.071
E8: 7 | F8: Kara Large | G8: RSL FirstRoyalEddie | I8: 16.075
E9: 8 | F9: Shelby Janssen | G9: Famous Amous | I9: 16.142 | K9: 2D 1st | L9: 144
E10: 9 | F10: Elyse Busby | G10: Knflingingbutterscotch | I10: 16.381 | K10: 2D 2nd | L10: 96
E11: 10 | F11: Tiany Schuster | G11: Version Six | I11: 16.414
E12: 11 | F12: Jamie Cramblit | G12: Pipers Magic | I12: 16.505
E13: 12 | F13: Kylee Cook | G13: Executing The Cause | I13: 16.575
E14: 13 | F14: Jamie Wilson | G14: Check Your Bet | I14: 16.631 | K14: 3D 1st | L14: 96
E15: 14 | F15: Lindsey Stevens | G15: JM I Got Faith | I15: 16.755 | K15: 3D 2nd | L15: 64
E16: 15 | F16: Jessica McBain | G16: Ruumble Gun | I16: 16.761
E17: 16 | F17: Lindsey Stevens | G17: Wadafire | I17: 16.79
E18: 17 | F18: Andrea Busby | G18: Guys Girl Power | I18: 16.812
E19: 18 | F19: Karen Shelley | G19: Flynig Bar bailey | I19: 16.828
E20: 19 | F20: Billie Ann Harmon | G20: Guys Got Fuel | I20: 16.952
E21: 20 | F21: Kit Miller | G21: Leans Rockn New Time | I21: 17.192 | K21: 4D 1st | L21: 72
E22: 21 | F22: Tiffany Durham | G22: Joaks Rolling Smoke | I22: 17.199 | K22: 4D 2nd | L22: 48
E23: 22 | F23: Brennan Gibbs | G23: Prefers Mitos Cash | I23: 17.344
E24: 23 | F24: Megan Mack | G24: Chic Pleez Shine | I24: 17.359
E25: 24 | F25: Kalie Cook | G25: Zanzibar Hawk | I25: 17.597
E26: 25 | F26: Whitney Fisher | G26: BB French N Easy | I26: 17.603
E27: 26 | F27: Tiffany Durham | G27: Dashin Luke Perry | I27: 17.635
E28: 27 | F28: Susan Agnew | G28: Splash Da Firewater | I28: 17.72
E29: 28 | F29: Tiffany Durham | G29: Colones Kerosene | I29: 17.9
E30: 29 | F30: Tiffany Durham | G30: Spect Snow | I30: 18.08
E31: 30 | F31: Tiffany Durham | G31: Junipers Sweet Down | I31: 18.992
E32: 31 | F32: Tyesha Carroll | G32: Watch My Fame | I32: 20.071
E33: 32 | F33: Andrea Busby | G33: Jets Heart N Soul | I33: broken
E34: 33 | F34: Andrea Cline | G34: Stitchs Streak N Fame | I34: nt
E35: 34 | F35: Susan Agnew | G35: Jet N Ta Fame | I35: nt16.068
E36: 35 | F36: Tiany Schuster | G36: Angels Fury | I36: nt16.145
E37: 36 | F37: Kristine DeBerg | G37: Bunchafirewater | I37: nt16.420
E38: 37 | F38: Shantell Hayes | G38: Perk Up And Dash | I38: nt16.493
E39: 38 | F39: Shantell Hayes | G39: VF Runawaylocomotive | I39: nt16.674
E40: 39 | F40: Blake Myers | G40: Shawne Wampum | I40: nt16.882
E41: 40 | F41: Jamie Steiner | G41: Hittin Fame | I41: nt18.842
E42: 41
E43: 42
E44: 43
E45: 44
E46: 45
E47: 46
E48: 47
E49: 48
E50: 49
E51: 50
E52: 51
E53: 52
E54: 53
E55: 54
E56: 55
E57: 56
E58: 57
E59: 58
E60: 59
E61: 60
E62: 61
E63: 62
E64: 63
E65: 64
E66: 65
E67: 66
E68: 67
E69: 68
E70: 69
E71: 70
E72: 71 | J72: =IF(OR(H72=5,H72=10, H72=15, H72="BP",H72="SCR"),"NT",I72) -> 0
E73: 72 | J73: 0
E74: 73 | J74: 0
E75: 74 | J75: 0
E76: 75 | J76: 0
E77: 76 | J77: 0
E78: 77 | J78: 0
E79: 78 | J79: 0
E80: 79 | J80: 0
E81: 80 | J81: 0
E82: 81 | J82: 0
E83: 82 | J83: 0
E84: 83 | J84: 0
E85: 84 | J85: 0
E86: 85 | J86: 0
E87: 86 | J87: 0
E88: 87 | J88: 0
E89: 88 | J89: 0
E90: 89 | J90: 0
E91: 90 | J91: 0
E92: 91 | J92: 0
E93: 92 | J93: 0
E94: 93 | J94: 0
E95: 94 | J95: 0
E96: 95 | J96: 0
E97: 96 | J97: 0
E98: 97 | J98: 0
E99: 98 | J99: 0
E100: 99 | J100: 0
E101: 100 | J101: 0
E102: 101 | J102: 0
E103: 102 | J103: 0
E104: 103 | J104: 0
E105: 104 | J105: 0
E106: 105 | J106: 0
E107: 106 | J107: 0
E108: 107 | J108: 0
E109: 108 | J109: 0
E110: 109 | J110: 0
E111: 110 | J111: 0
E112: 111 | J112: 0
E113: 112 | J113: 0
E114: 113 | J114: 0
E115: 114 | J115: 0
E116: 115 | J116: 0
E117: 116 | J117: 0
E118: 117 | J118: 0
E119: 118 | J119: 0
E120: 119 | J120: 0
E121: 120 | J121: 0
E122: 121 | J122: 0
E123: 122 | J123: 0
E124: 123 | J124: 0
E125: 124 | J125: 0
E126: 125 | J126: 0
E127: 126 | J127: 0
E128: 127 | J128: 0
E129: 128 | J129: 0
E130: 129 | J130: 0
E131: 130 | J131: 0
E132: 131 | J132: 0
E133: 132 | J133: 0
E134: 133 | J134: 0
E135: 134 | J135: 0
E136: 135 | J136: =IF(OR(H136=5,H136=10, H136=15, H136="BP",H136="SCR"),"NT",I136) -> 0
E137: 136 | J137: 0
E138: 137 | J138: 0
E139: 138 | J139: 0
E140: 139 | J140: 0
E141: 140 | J141: 0
E142: 141 | J142: 0
E143: 142 | J143: 0
E144: 143 | J144: 0
E145: 144 | J145: 0
E146: 145 | J146: 0
E147: 146 | J147: 0
E148: 147 | J148: 0
E149: 148 | J149: 0
E150: 149 | J150: 0
E151: 150 | J151: 0
E152: 151 | J152: 0
E153: 152 | J153: 0
E154: 153 | J154: 0
E155: 154 | J155: 0
E156: 155 | J156: 0
E157: 156 | J157: 0
E158: 157 | J158: 0
E159: 158 | J159: 0
E160: 159 | J160: 0
E161: 160 | J161: 0
E162: 161 | J162: 0
E163: 162 | J163: 0
E164: 163 | J164: 0
E165: 164 | J165: 0
E166: 165 | J166: 0
E167: 166 | J167: 0
E168: 167 | J168: 0
E169: 168 | J169: 0
E170: 169 | J170: 0
E171: 170 | J171: 0
E172: 171 | J172: 0
E173: 172 | J173: 0
E174: 173 | J174: 0
E175: 174 | J175: 0
E176: 175 | J176: 0
E177: 176 | J177: 0
E178: 177 | J178: 0
E179: 178 | J179: 0
E180: 179 | J180: 0
E181: 180 | J181: 0
E182: 181 | J182: 0
E183: 182 | J183: 0
E184: 183 | J184: 0
E185: 184 | J185: 0
E186: 185 | J186: 0
E187: 186 | J187: 0
E188: 187 | J188: 0
E189: 188 | J189: 0
E190: 189 | J190: 0
E191: 190 | J191: 0
E192: 191 | J192: 0
E193: 192 | J193: 0
E194: 193 | J194: 0
E195: 194 | J195: 0
E196: 195 | J196: 0
E197: 196 | J197: 0
E198: 197 | J198: 0
E199: 198 | J199: 0
E200: 199 | J200: =IF(OR(H200=5,H200=10, H200=15, H200="BP",H200="SCR"),"NT",I200) -> 0
... 101 more rows

Sheet Youth
A1: Futurity | B1: Der | C1: Age Inct. | D1: BBR | E1: Draw | F1: Rider Name | G1: Horse Name | H1: Pen | I1: Time | J1: Placing | K1: Money Earned
E2: 1 | F2: Micah Wallace | G2: Pockets | I2: 15.809 | J2: 1D 1st | K2: 77
E3: 2 | F3: Rylee Hardin | G3: Jesssuperfly | I3: 15.891
E4: 3 | F4: Steely Steiner | G4: Teena Turner | I4: 16.084
E5: 4 | F5: Rylee Hardin | G5: SAVelvets Dual Pep | I5: 16.446 | J5: 2D 1st | K5: 66
E6: 5 | F6: Jaden Nowosad | G6: Nicks Famous Deal | I6: 16.508
E7: 6 | F7: Aspen Adams | G7: DDD Lil Peppy Stitch | I7: 16.775
E8: 7 | F8: Jolie Smith | G8: Docs Lil Leo | I8: 17.116 | J8: 3D 1st | K8: 44
E9: 8 | F9: Mikayla Cearley | G9: TF Peppysmokensavage | I9: 17.775 | J9: 4D 1st | K9: 33
E10: 9 | F10: Rylee Hardin | G10: WhisperCowgirl | I10: broken
E11: 10 | F11: Stormi Branch | G11: Demon | I11: nt16.408
E12: 11 | F12: Aspen Adams | G12: Credit The Gin | I12: nt17.004
E13: 12
E14: 13
E15: 14
E16: 15
E17: 16
E18: 17
E19: 18
E20: 19
E21: 20
E22: 21
E23: 22
E24: 23
E25: 24
E26: 25
E27: 26
E28: 27
E29: 28
E30: 29
E31: 30
E32: 31
E33: 32
E34: 33
E35: 34
E36: 35
E37: 36
E38: 37
E39: 38
E40: 39
E41: 40
E42: 41
E43: 42
E44: 43
E45: 44
E46: 45
E47: 46
E48: 47
E49: 48
E50: 49
E51: 50
E52: 51
E53: 52
E54: 53
E55: 54
E56: 55
E57: 56
E58: 57
E59: 58
E60: 59
E61: 60
E62: 61
E63: 62
E64: 63
E65: 64
E66: 65
E67: 66
E68: 67
E69: 68
E70: 69
E71: 70
E72: 71
E73: 72
E74: 73
E75: 74
E76: 75
E77: 76
E78: 77
E79: 78
E80: 79
E81: 80
E82: 81
E83: 82
E84: 83
E85: 84
E86: 85
E87: 86
E88: 87
E89: 88
E90: 89
E91: 90
E92: 91
E93: 92
E94: 93
E95: 94
E96: 95
E97: 96
E98: 97
E99: 98
E100: 99
E101: 100
E102: 101
E103: 102
E104: 103
E105: 104
E106: 105
E107: 106
E108: 107
E109: 108
E110: 109
E111: 110
E112: 111
E113: 112
E114: 113
E115: 114
E116: 115
E117: 116
E118: 117
E119: 118
E120: 119
E121: 120
E122: 121
E123: 122
E124: 123
E125: 124
E126: 125
E127: 126
E128: 127
E129: 128
E130: 129
E131: 130
E132: 131
E133: 132
E134: 133
E135: 134
E136: 135
E137: 136
E138: 137
E139: 138
E140: 139
E141: 140
E142: 141
E143: 142
E144: 143
E145: 144
E146: 145
E147: 146
E148: 147
E149: 148
E150: 149
E151: 150
E152: 151
E153: 152
E154: 153
E155: 154
E156: 155
E157: 156
E158: 157
E159: 158
E160: 159
E161: 160
E162: 161
E163: 162
E164: 163
E165: 164
E166: 165
E167: 166
E168: 167
E169: 168
E170: 169
E171: 170
E172: 171
E173: 172
E174: 173
E175: 174
E176: 175
E177: 176
E178: 177
E179: 178
E180: 179
E181: 180
E182: 181
E183: 182
E184: 183
E185: 184
E186: 185
E187: 186
E188: 187
E189: 188
E190: 189
E191: 190
E192: 191
E193: 192
E194: 193
E195: 194
E196: 195
E197: 196
E198: 197
E199: 198
E200: 199
... 101 more rows

Sheet Derby
A1: Futurity | B1: Der | C1: Age Inct. | D1: BBR | E1: Draw | F1: Rider Name | G1: Horse Name | H1: c/o | I1: Time | J1: Final Time | K1: Placing | L1: Money Earned
E2: 2 | F2: Tiany Schuster | G2: Micguyver | I2: 15.708 | K2: 1st | L2: 119
E3: 3 | F3: Shelley Morgan | G3: HR Fameskissandtell | I3: 15.771 | K3: 2nd | L3: 102
E4: 5 | F4: Rylee Hardin | G4: Jesssuperfly | I4: 15.891 | K4: 4th | L4: 51
E5: 6 | F5: Shelby Janssen | G5: Shes A Man Eater | I5: 15.944
E6: 7 | F6: Kara Large | G6: RSL FirstRoyalEddie | I6: 16.075
E7: 8 | F7: Jody Cousins | G7: Abaileysflashlight | I7: 16.188
E8: 9 | F8: Benjamin Beall | G8: Dashing Romeo | I8: 16.244
E9: 10 | F9: Cassidy Champlin | G9: Wood Bea French Girl | I9: 16.344
E10: 11 | F10: Jaden Nowosad | G10: Nicks Famous Deal | I10: 16.508
E11: 12 | F11: Erika Ashley | G11: Freight Train C | I11: 16.793
E12: 13 | F12: Nisa Berry | G12: Code Name Fame | I12: 17.321
E13: 14 | F13: Tiffany Durham | G13: Colones Kerosene | I13: 17.9
E14: 15 | F14: Jacque Woolman | G14: Bar B Arabella Bug | I14: nt16.069
E15: 16 | F15: Sara Jo Lamb | G15: Takin On A Goldmine | I15: nt16.375
E16: 17 | F16: Ashley Schaffer | G16: Bailey Steakinchick | I16: nt16.406
E17: 18 | F17: Helen Nowosad | G17: Sweet Timber Nickers | I17: nt17.571
E18: 19
E19: 20 | J19: =IF(OR(H19=5,H19=10, H19=15, H19="BP",H19="SCR"),"NT",I19) -> 0
E20: 21 | J20: 0
E21: 22 | J21: 0
E22: 23 | J22: 0
E23: 24 | J23: 0
E24: 25 | J24: 0
E25: 26 | J25: 0
E26: 27 | J26: 0
E27: 28 | J27: 0
E28: 29 | J28: 0
E29: 30 | J29: 0
E30: 31 | J30: 0
E31: 32 | J31: 0
E32: 33 | J32: 0
E33: 34 | J33: 0
E34: 35 | J34: 0
E35: 36 | J35: 0
E36: 37 | J36: 0
E37: 38 | J37: 0
E38: 39 | J38: 0
E39: 40 | J39: 0
E40: 41 | J40: 0
E41: 42 | J41: 0
E42: 43 | J42: 0
E43: 44 | J43: 0
E44: 45 | J44: 0
E45: 46 | J45: 0
E46: 47 | J46: 0
E47: 48 | J47: 0
E48: 49 | J48: 0
E49: 50 | J49: 0
E50: 51 | J50: 0
E51: 52 | J51: 0
E52: 53 | J52: 0
E53: 54 | J53: 0
E54: 55 | J54: 0
E55: 56 | J55: 0
E56: 57 | J56: 0
E57: 58 | J57: 0
E58: 59 | J58: 0
E59: 60 | J59: 0
E60: 61 | J60: 0
E61: 62 | J61: 0
E62: 63 | J62: 0
E63: 64 | J63: 0
E64: 65 | J64: 0
E65: 66 | J65: 0
E66: 67 | J66: 0
E67: 68 | J67: 0
E68: 69 | J68: 0
E69: 70 | J69: 0
E70: 71 | J70: 0
E71: 72 | J71: 0
E72: 73 | J72: 0
E73: 74 | J73: 0
E74: 75 | J74: 0
E75: 76 | J75: 0
E76: 77 | J76: 0
E77: 78 | J77: 0
E78: 79 | J78: 0
E79: 80 | J79: 0
E80: 81 | J80: =IF(OR(H80=5,H80=10, H80=15, H80="BP",H80="SCR"),"NT",I80) -> 0
E81: 82 | J81: 0
E82: 83 | J82: 0
E83: 84 | J83: 0
E84: 85 | J84: 0
E85: 86 | J85: 0
E86: 87 | J86: 0
E87: 88 | J87: 0
E88: 89 | J88: 0
E89: 90 | J89: 0
E90: 91 | J90: 0
E91: 92 | J91: 0
E92: 93 | J92: 0
E93: 94 | J93: 0
E94: 95 | J94: 0
E95: 96 | J95: 0
E96: 97 | J96: 0
E97: 98 | J97: 0
E98: 99 | J98: 0
E99: 100 | J99: 0
E100: 101 | J100: 0
E101: 102 | J101: 0
E102: 103 | J102: 0
E103: 104 | J103: 0
E104: 105 | J104: 0
E105: 106 | J105: 0
E106: 107 | J106: 0
E107: 108 | J107: 0
E108: 109 | J108: 0
E109: 110 | J109: 0
E110: 111 | J110: 0
E111: 112 | J111: 0
E112: 113 | J112: 0
E113: 114 | J113: 0
E114: 115 | J114: 0
E115: 116 | J115: 0
E116: 117 | J116: 0
E117: 118 | J117: 0
E118: 119 | J118: 0
E119: 120 | J119: 0
E120: 121 | J120: 0
E121: 122 | J121: 0
E122: 123 | J122: 0
E123: 124 | J123: 0
E124: 125 | J124: 0
E125: 126 | J125: 0
E126: 127 | J126: 0
E127: 128 | J127: 0
E128: 129 | J128: 0
E129: 130 | J129: 0
E130: 131 | J130: 0
E131: 132 | J131: 0
E132: 133 | J132: 0
E133: 134 | J133: 0
E134: 135 | J134: 0
E135: 136 | J135: 0
E136: 137 | J136: 0
E137: 138 | J137: 0
E138: 139 | J138: 0
E139: 140 | J139: 0
E140: 141 | J140: 0
E141: 142 | J141: 0
E142: 143 | J142: 0
E143: 144 | J143: 0
E144: 145 | J144: =IF(OR(H144=5,H144=10, H144=15, H144="BP",H144="SCR"),"NT",I144) -> 0
E145: 146 | J145: 0
E146: 147 | J146: 0
E147: 148 | J147: 0
E148: 149 | J148: 0
E149: 150 | J149: 0
E150: 151 | J150: 0
E151: 152 | J151: 0
E152: 153 | J152: 0
E153: 154 | J153: 0
E154: 155 | J154: 0
E155: 156 | J155: 0
E156: 157 | J156: 0
E157: 158 | J157: 0
E158: 159 | J158: 0
E159: 160 | J159: 0
E160: 161 | J160: 0
E161: 162 | J161: 0
E162: 163 | J162: 0
E163: 164 | J163: 0
E164: 165 | J164: 0
E165: 166 | J165: 0
E166: 167 | J166: 0
E167: 168 | J167: 0
E168: 169 | J168: 0
E169: 170 | J169: 0
E170: 171 | J170: 0
E171: 172 | J171: 0
E172: 173 | J172: 0
E173: 174 | J173: 0
E174: 175 | J174: 0
E175: 176 | J175: 0
E176: 177 | J176: 0
E177: 178 | J177: 0
E178: 179 | J178: 0
E179: 180 | J179: 0
E180: 181 | J180: 0
E181: 182 | J181: 0
E182: 183 | J182: 0
E183: 184 | J183: 0
E184: 185 | J184: 0
E185: 186 | J185: 0
E186: 187 | J186: 0
E187: 188 | J187: 0
E188: 189 | J188: 0
E189: 190 | J189: 0
E190: 191 | J190: 0
E191: 192 | J191: 0
E192: 193 | J192: 0
E193: 194 | J193: 0
E194: 195 | J194: 0
E195: 196 | J195: 0
E196: 197 | J196: 0
E197: 198 | J197: 0
E198: 199 | J198: 0
E199: 200 | J199: 0
E200: 201 | J200: 0
... 99 more rows

Sheet High Stakes
A1: Futurity | B1: Der | C1: Age Inct. | D1: BBR | E1: Draw | F1: Rider Name | G1: Horse Name | H1: c/o | I1: Time | J1: Final Time | K1: Placing | L1: Money Earned
E2: 1 | F2: Helen Nowosad | G2: Raise The Gold Bar | I2: 15.627 | K2: 1st | L2: 504
E3: 2 | F3: Tiany Schuster | G3: Micguyver | I3: 15.708 | K3: 2nd | L3: 432
E4: 3 | F4: Deann Morgan | G4: Colour Me Fast | I4: 15.758 | K4: 3rd | L4: 288
E5: 4 | F5: Shelley Morgan | G5: HR Fameskissandtell | I5: 15.771 | K5: 4th | L5: 216
E6: 5 | F6: Tiany Schuster | G6: Showmance | I6: 15.835
E7: 6 | F7: Rylee Hardin | G7: Jesssuperfly | I7: 15.891
E8: 7 | F8: Lisa Thornton | G8: Straight Toasted | I8: 15.929
E9: 8 | F9: Ashley Crow | G9: Willie B Firewater | I9: 16.016
E10: 9 | F10: Kara Large | G10: Credit To Fiesta | I10: 16.071
E11: 10 | F11: Kara Large | G11: RSL FirstRoyalEddie | I11: 16.075
E12: 11 | F12: Shelby Janssen | G12: Famous Amous | I12: 16.142
E13: 12 | F13: Molly Childers | G13: Just My Choice | I13: 16.148
E14: 13 | F14: Tiany Schuster | G14: Version Six | I14: 16.414
E15: 14 | F15: Martha Jordan | G15: JL Fourtafame | I15: 16.459
E16: 15 | F16: Jamie Wilson | G16: Check Your Bet | I16: 16.631
E17: 16 | F17: Andrea Cline | G17: Stitchs Streak N Fame | I17: nt
E18: 17 | F18: Jacque Woolman | G18: Bar B Arabella Bug | I18: nt16.069
E19: 18 | F19: Tiany Schuster | G19: Angels Fury | I19: nt16.145
E20: 19
E21: 20
E22: 21
E23: 22
E24: 23
E25: 24
E26: 25
E27: 26
E28: 27
E29: 28
E30: 29
E31: 30
E32: 31
E33: 32
E34: 33
E35: 34
E36: 35
E37: 36
E38: 37
E39: 38
E40: 39 | J40: =IF(OR(H40=5,H40=10, H40=15, H40="BP",H40="SCR"),"NT",I40) -> 0
E41: 40 | J41: 0
E42: 41 | J42: 0
E43: 42 | J43: 0
E44: 43 | J44: 0
E45: 44 | J45: 0
E46: 45 | J46: 0
E47: 46 | J47: 0
E48: 47 | J48: 0
E49: 48 | J49: 0
E50: 49 | J50: 0
E51: 50 | J51: 0
E52: 51 | J52: 0
E53: 52 | J53: 0
E54: 53 | J54: 0
E55: 54 | J55: 0
E56: 55 | J56: 0
E57: 56 | J57: 0
E58: 57 | J58: 0
E59: 58 | J59: 0
E60: 59 | J60: 0
E61: 60 | J61: 0
E62: 61 | J62: 0
E63: 62 | J63: 0
E64: 63 | J64: 0
E65: 64 | J65: 0
E66: 65 | J66: 0
E67: 66 | J67: 0
E68: 67 | J68: 0
E69: 68 | J69: 0
E70: 69 | J70: 0
E71: 70 | J71: 0
E72: 71 | J72: 0
E73: 72 | J73: 0
E74: 73 | J74: 0
E75: 74 | J75: 0
E76: 75 | J76: 0
E77: 76 | J77: 0
E78: 77 | J78: 0
E79: 78 | J79: 0
E80: 79 | J80: 0
E81: 80 | J81: 0
E82: 81 | J82: 0
E83: 82 | J83: 0
E84: 83 | J84: 0
E85: 84 | J85: 0
E86: 85 | J86: 0
E87: 86 | J87: 0
E88: 87 | J88: 0
E89: 88 | J89: 0
E90: 89 | J90: 0
E91: 90 | J91: 0
E92: 91 | J92: 0
E93: 92 | J93: 0
E94: 93 | J94: 0
E95: 94 | J95: 0
E96: 95 | J96: 0
E97: 96 | J97: 0
E98: 97 | J98: 0
E99: 98 | J99: 0
E100: 99 | J100: 0
E101: 100 | J101: 0
E102: 101 | J102: 0
E103: 102 | J103: 0
E104: 103 | J104: =IF(OR(H104=5,H104=10, H104=15, H104="BP",H104="SCR"),"NT",I104) -> 0
E105: 104 | J105: 0
E106: 105 | J106: 0
E107: 106 | J107: 0
E108: 107 | J108: 0
E109: 108 | J109: 0
E110: 109 | J110: 0
E111: 110 | J111: 0
E112: 111 | J112: 0
E113: 112 | J113: 0
E114: 113 | J114: 0
E115: 114 | J115: 0
E116: 115 | J116: 0
E117: 116 | J117: 0
E118: 117 | J118: 0
E119: 118 | J119: 0
E120: 119 | J120: 0
E121: 120 | J121: 0
E122: 121 | J122: 0
E123: 122 | J123: 0
E124: 123 | J124: 0
E125: 124 | J125: 0
E126: 125 | J126: 0
E127: 126 | J127: 0
E128: 127 | J128: 0
E129: 128 | J129: 0
E130: 129 | J130: 0
E131: 130 | J131: 0
E132: 131 | J132: 0
E133: 132 | J133: 0
E134: 133 | J134: 0
E135: 134 | J135: 0
E136: 135 | J136: 0
E137: 136 | J137: 0
E138: 137 | J138: 0
E139: 138 | J139: 0
E140: 139 | J140: 0
E141: 140 | J141: 0
E142: 141 | J142: 0
E143: 142 | J143: 0
E144: 143 | J144: 0
E145: 144 | J145: 0
E146: 145 | J146: 0
E147: 146 | J147: 0
E148: 147 | J148: 0
E149: 148 | J149: 0
E150: 149 | J150: 0
E151: 150 | J151: 0
E152: 151 | J152: 0
E153: 152 | J153: 0
E154: 153 | J154: 0
E155: 154 | J155: 0
E156: 155 | J156: 0
E157: 156 | J157: 0
E158: 157 | J158: 0
E159: 158 | J159: 0
E160: 159 | J160: 0
E161: 160 | J161: 0
E162: 161 | J162: 0
E163: 162 | J163: 0
E164: 163 | J164: 0
E165: 164 | J165: 0
E166: 165 | J166: 0
E167: 166 | J167: 0
E168: 167 | J168: =IF(OR(H168=5,H168=10, H168=15, H168="BP",H168="SCR"),"NT",I168) -> 0
E169: 168 | J169: 0
E170: 169 | J170: 0
E171: 170 | J171: 0
E172: 171 | J172: 0
E173: 172 | J173: 0
E174: 173 | J174: 0
E175: 174 | J175: 0
E176: 175 | J176: 0
E177: 176 | J177: 0
E178: 177 | J178: 0
E179: 178 | J179: 0
E180: 179 | J180: 0
E181: 180 | J181: 0
E182: 181 | J182: 0
E183: 182 | J183: 0
E184: 183 | J184: 0
E185: 184 | J185: 0
E186: 185 | J186: 0
E187: 186 | J187: 0
E188: 187 | J188: 0
E189: 188 | J189: 0
E190: 189 | J190: 0
E191: 190 | J191: 0
E192: 191 | J192: 0
E193: 192 | J193: 0
E194: 193 | J194: 0
E195: 194 | J195: 0
E196: 195 | J196: 0
E197: 196 | J197: 0
E198: 197 | J198: 0
E199: 198 | J199: 0
E200: 199 | J200: 0
... 101 more rows

Sheet Futurity
A1: Futurity | B1: Der | C1: Age Inct. | D1: BBR | E1: Draw | F1: Rider Name | G1: Horse Name | H1: c/o | I1: Time | J1: Final Time | K1: Placing | L1: Money Earned
E2: 1 | F2: Billie Ann Harmon | G2: Me Flingin Diamonds | I2: 16.061 | K2: 1D 1st | L2: 130
E3: 2 | F3: Ashley Schaffer | G3: Positivelty Smooth | I3: 16.369 | K3: 1D 2nd | L3: 86
E4: 3 | F4: Kristen Hendewerk | G4: Tennessee Fuel | I4: 16.444
E5: 4 | F5: Bugg Beeler | G5: JKL Letterflyreba | I5: 16.459
E6: 5 | F6: Billie Ann Harmon | G6: Bug On Firewater | I6: 16.518
E7: 6 | F7: Ashley Schaffer | G7: Famous Party Guy | I7: 16.608
E8: 7 | F8: Lisa Thornton | G8: Trixxi | I8: 16.677
E9: 8 | F9: Molly Childers | G9: Dash Ta Special | I9: 16.681
E10: 9 | F10: Kelly Bruner | G10: LLP Shadrach | I10: 16.743
E11: 10 | F11: Ashley Schaffer | G11: Boonsstreakincolours | I11: 16.839
E12: 11 | F12: Kylee Schribner | G12: Firewater Cartel | I12: 17.084 | K12: 2D 1st | L12: 86
E13: 12 | F13: Ashley Sims | G13: MS Double Frost | I13: 17.513 | K13: 2D 2nd | L13: 58
E14: 13 | F14: Ashley Schaffer | G14: French Streakin Slew | I14: 17.626
E15: 14 | F15: Lisa Thornton | G15: LT The Lucky One | I15: nt16.143
E16: 15 | F16: Tiany Schuster | G16: Angels Fury | I16: nt16.145
E17: 16 | F17: Wyatt Paul | G17: Hurricain Harvey | I17: nt17.183
E18: 17 | F18: Nisa Berry | G18: Media On Firewater | I18: nt17.262
E19: 18 | F19: Kelly Bruner | G19: Tuffernell | I19: nt17.310
E20: 19
E21: 20
E22: 21
E23: 22
E24: 23
E25: 24
E26: 25
E27: 26
E28: 27
E29: 28
E30: 29
E31: 30
E32: 31
E33: 32
E34: 33
E35: 34
E36: 35
E37: 36
E38: 37
E39: 38
E40: 39
E41: 40
E42: 41
E43: 42
E44: 43
E45: 44
E46: 45
E47: 46
E48: 47
E49: 48
E50: 49
E51: 50
E52: 51
E53: 52
E54: 53
E55: 54
E56: 55
E57: 56
E58: 57
E59: 58
E60: 59
E61: 60
E62: 61
E63: 62
E64: 63
E65: 64
E66: 65
E67: 66
E68: 67
E69: 68
E70: 69
E71: 70
E72: 71
E73: 72
E74: 73
E75: 74
E76: 75
E77: 76 | J77: =IF(OR(H77=5,H77=10, H77=15, H77="BP",H77="SCR"),"NT",I77) -> 0
E78: 77 | J78: 0
E79: 78 | J79: 0
E80: 79 | J80: 0
E81: 80 | J81: 0
E82: 81 | J82: 0
E83: 82 | J83: 0
E84: 83 | J84: 0
E85: 84 | J85: 0
E86: 85 | J86: 0
E87: 86 | J87: 0
E88: 87 | J88: 0
E89: 88 | J89: 0
E90: 89 | J90: 0
E91: 90 | J91: 0
E92: 91 | J92: 0
E93: 92 | J93: 0
E94: 93 | J94: 0
E95: 94 | J95: 0
E96: 95 | J96: =IF(OR(H96=5,H96=10, H96=15, H96="BP",H96="SCR"),"NT",I96) -> 0
E97: 96 | J97: 0
E98: 97 | J98: 0
E99: 98 | J99: 0
E100: 99 | J100: 0
E101: 100 | J101: 0
E102: 101 | J102: 0
E103: 102 | J103: 0
E104: 103 | J104: 0
E105: 104 | J105: 0
E106: 105 | J106: 0
E107: 106 | J107: 0
E108: 107 | J108: 0
E109: 108 | J109: 0
E110: 109 | J110: 0
E111: 110 | J111: 0
E112: 111 | J112: 0
E113: 112 | J113: 0
E114: 113 | J114: 0
E115: 114 | J115: 0
E116: 115 | J116: 0
E117: 116 | J117: 0
E118: 117 | J118: 0
E119: 118 | J119: 0
E120: 119 | J120: 0
E121: 120 | J121: 0
E122: 121 | J122: 0
E123: 122 | J123: 0
E124: 123 | J124: 0
E125: 124 | J125: 0
E126: 125 | J126: 0
E127: 126 | J127: 0
E128: 127 | J128: 0
E129: 128 | J129: 0
E130: 129 | J130: 0
E131: 130 | J131: 0
E132: 131 | J132: 0
E133: 132 | J133: 0
E134: 133 | J134: 0
E135: 134 | J135: 0
E136: 135 | J136: 0
E137: 136 | J137: 0
E138: 137 | J138: 0
E139: 138 | J139: 0
E140: 139 | J140: 0
E141: 140 | J141: 0
E142: 141 | J142: 0
E143: 142 | J143: 0
E144: 143 | J144: 0
E145: 144 | J145: 0
E146: 145 | J146: 0
E147: 146 | J147: 0
E148: 147 | J148: 0
E149: 148 | J149: 0
E150: 149 | J150: 0
E151: 150 | J151: 0
E152: 151 | J152: 0
E153: 152 | J153: 0
E154: 153 | J154: 0
E155: 154 | J155: 0
E156: 155 | J156: 0
E157: 156 | J157: 0
E158: 157 | J158: 0
E159: 158 | J159: 0
E160: 159 | J160: =IF(OR(H160=5,H160=10, H160=15, H160="BP",H160="SCR"),"NT",I160) -> 0
E161: 160 | J161: 0
E162: 161 | J162: 0
E163: 162 | J163: 0
E164: 163 | J164: 0
E165: 164 | J165: 0
E166: 165 | J166: 0
E167: 166 | J167: 0
E168: 167 | J168: 0
E169: 168 | J169: 0
E170: 169 | J170: 0
E171: 170 | J171: 0
E172: 171 | J172: 0
E173: 172 | J173: 0
E174: 173 | J174: 0
E175: 174 | J175: 0
E176: 175 | J176: 0
E177: 176 | J177: 0
E178: 177 | J178: 0
E179: 178 | J179: 0
E180: 179 | J180: 0
E181: 180 | J181: 0
E182: 181 | J182: 0
E183: 182 | J183: 0
E184: 183 | J184: 0
E185: 184 | J185: 0
E186: 185 | J186: 0
E187: 186 | J187: 0
E188: 187 | J188: 0
E189: 188 | J189: 0
E190: 189 | J190: 0
E191: 190 | J191: 0
E192: 191 | J192: 0
E193: 192 | J193: 0
E194: 193 | J194: 0
E195: 194 | J195: 0
E196: 195 | J196: 0
E197: 196 | J197: 0
E198: 197 | J198: 0
E199: 198 | J199: 0
E200: 199 | J200: 0
... 101 more rows

Sheet 12 & Under (hidden)
A1: Futurity | B1: Der | C1: Age Inct. | D1: R/O | E1: Draw | F1: Rider Name | G1: Horse Name | H1: Time | I1: Final Time | J1: Placing | K1: Money Earned
E33: 32
E34: 33
E35: 34
E36: 35
E37: 36
E38: 37
E39: 38
E40: 39
E41: 40
E42: 41
E43: 42
E44: 43
E45: 44
E46: 45
E47: 46
E48: 47
E49: 48
E50: 49
E51: 50
E52: 51
E53: 52
E54: 53
E55: 54
E56: 55
E57: 56
E58: 57
E59: 58
E60: 59
E61: 60
E62: 61
E63: 62
E64: 63
E65: 64
E66: 65
E67: 66
E68: 67
E69: 68
E70: 69
E71: 70
E72: 71
E73: 72
E74: 73
E75: 74
E76: 75
E77: 76
E78: 77
E79: 78
E80: 79
E81: 80
E82: 81
E83: 82
E84: 83
E85: 84
E86: 85
E87: 86
E88: 87
E89: 88
E90: 89
E91: 90
E92: 91
E93: 92
E94: 93
E95: 94
E96: 95
E97: 96
E98: 97
E99: 98
E100: 99
E101: 100
E102: 101
E103: 102
E104: 103
E105: 104
E106: 105
E107: 106
E108: 107
E109: 108
E110: 109
E111: 110
E112: 111
E113: 112
E114: 113
E115: 114
E116: 115
E117: 116
E118: 117
E119: 118
E120: 119
E121: 120
E122: 121
E123: 122
E124: 123
E125: 124
E126: 125
E127: 126
E128: 127
E129: 128
E130: 129
E131: 130
E132: 131
E133: 132
E134: 133
E135: 134
E136: 135
E137: 136
E138: 137
E139: 138
E140: 139
E141: 140
E142: 141
E143: 142
E144: 143
E145: 144
E146: 145
E147: 146
E148: 147
E149: 148
E150: 149
E151: 150
E152: 151
E153: 152
E154: 153
E155: 154
E156: 155
E157: 156
E158: 157
E159: 158
E160: 159
E161: 160
E162: 161
E163: 162
E164: 163
E165: 164
E166: 165
E167: 166
E168: 167
E169: 168
E170: 169
E171: 170
E172: 171
E173: 172
E174: 173
E175: 174
E176: 175
E177: 176
E178: 177
E179: 178
E180: 179
E181: 180
E182: 181
E183: 182
E184: 183
E185: 184
E186: 185
E187: 186
E188: 187
E189: 188
E190: 189
E191: 190
E192: 191
E193: 192
E194: 193
E195: 194
E196: 195
E197: 196
E198: 197
E199: 198
E200: 199
E201: 200
E202: 201
E203: 202
E204: 203
E205: 204
E206: 205
E207: 206
E208: 207
E209: 208
E210: 209
E211: 210
E212: 211
E213: 212
E214: 213
E215: 214
E216: 215
E217: 216
E218: 217
E219: 218
E220: 219
E221: 220
E222: 221
E223: 222
E224: 223
E225: 224
E226: 225
E227: 226
E228: 227
E229: 228
E230: 229
E231: 230
... 70 more rows

Sheet 10&under
A1: Draw | B1: Rider Name | C1: Horse Name | D1: Pen | E1: Time | F1: Final Time | G1: Placing | H1: Money Earned
A2: 1 | B2: Breelyn Black | C2: Poptart | E2: 83.327
A3: 2 | B3: Annabelle Alexander | C3: phoenix | E3: 20.233
A4: 3 | B4: Addison Loring | E4: 28.887
A5: 4 | B5: Cooper Peak | C5: Irish | E5: nt
A6: 5 | B6: Walter Wolf | E6: 17.794
A7: 6 | B7: Jolie Smith | C7: Docs Lil Leo
A8: 7 | B8: Adley Hardin | C8: Maggie
A9: 8
A10: 9
A11: 10
A12: 10
A13: 11
A14: 12
A15: 13 | F15: =IF(OR(D15=5,D15=10, D15=15, D15="BP",D15="SCR"),"NT",E15) -> 0
A16: 14 | F16: 0
A17: 15 | F17: 0
A18: 16 | F18: 0
A19: 17 | F19: 0
A20: 18 | F20: 0
A21: 19 | F21: 0
A22: 20 | F22: 0
A23: 21 | F23: 0
A24: 22 | F24: 0
A25: 23 | F25: 0

Sheet BFA 2D Payout (hidden)
A1: BFA 2D Payout
A2: Entry Fee | B2: # Entries | C2: % Payback | D2: Added $ | E2: Total Payout | F2: Each Go
A3: 25 | B3: 19 | C3: 0.8 | D3: 200 | E3: =(A3*$C$3)*B3+D3 -> 580 | F3: 0.3
F4: =$E$3*$F$3 -> 174
A5: $5,000-7,500 Pays 5 Places 4 to 1D 1 to 2D
A6: Placings | B6: 1D | D6: 2D
A7: 1st | B7: =($F$4*$C$7) -> 57.42 | C7: 0.33 | D7: =$F$4*$E$7 -> 12.18 | E7: 0.07
A8: 2nd | B8: =$F$4*$C$8 -> 46.98 | C8: 0.27
A9: 3rd | B9: =$F$4*$C$9 -> 34.8 | C9: 0.2
A10: 4th | B10: =$F$4*$C$10 -> 22.62 | C10: 0.13
A11: Totals | B11: =SUM(B7:B10) -> 161.82 | D11: =SUM(D7:D10) -> 12.18 | E11: =(C7+C8+C9+C10+E7+E8) -> 1
A12: =B11+D11 -> 174
A13: $7,501 - 10,000 Pays 6 Places 4 to 1D, 2 to 2D
A14: Placings | B14: 1D | D14: 2D
A15: 1st | B15: =$F$4*$C$15 -> 50.46 | C15: 0.29 | D15: =$F$4*$E$15 -> 15.66 | E15: 0.09
A16: 2nd | B16: =+$F$4*$C$16 -> 41.76 | C16: 0.24 | D16: =F4*E16 -> 8.7 | E16: 0.05
A17: 3rd | B17: =$F$4*$C$17 -> 33.06 | C17: 0.19
A18: 4th | B18: =$F$4*$C$18 -> 24.36 | C18: 0.14
A19: Totals | B19: =SUM(B15:B18) -> 149.64 | D19: =D16+D15 -> 24.36 | E19: =SUM(C15+C16+C17+C18+E15+E16) -> 1
A20: =D19+B19 -> 174
A21: $10,001 - $15,000 Payes 8 Places 5 to 1D, 3 to 2D
A22: Placings | B22: 1D | D22: 2D
A23: 1st | B23: =F4*C23 -> 41.76 | C23: 0.24 | D23: =F4*E23 -> 12.18 | E23: 0.07
A24: 2nd | B24: =F4*C24 -> 34.8 | C24: 0.2 | D24: =F4*E24 -> 8.7 | E24: 0.05
A25: 3rd | B25: =F4*C25 -> 29.58 | C25: 0.17 | D25: =F4*E25 -> 6.96 | E25: 0.04
A26: 4th | B26: =F4*C26 -> 22.62 | C26: 0.13
A27: 5th | B27: =F4*C27 -> 17.4 | C27: 0.1
A28: Totals | B28: =SUM(B23:B27) -> 146.16 | D28: =SUM(D23:D27) -> 27.84 | E28: =C23+C24+C25+C26+C27+E23+E24+E25 -> 1
A29: =B28+D28 -> 174
A30: $15,001 - $25,000 Payes 11 Places 7 to 1D, 4 to 2D
A31: Placings | B31: 1D | D31: 2D
A32: 1st | B32: =$F$4*C32 -> 36.54 | C32: 0.21 | D32: =$F$4*E32 -> 8.7 | E32: 0.05
A33: 2nd | B33: =$F$4*C33 -> 31.32 | C33: 0.18 | D33: =$F$4*E33 -> 6.96 | E33: 0.04
A34: 3rd | B34: 26.1 | C34: 0.15 | D34: 5.22 | E34: 0.03
A35: 4th | B35: 19.14 | C35: 0.11 | D35: 3.48 | E35: 0.02
A36: 5th | B36: 13.92 | C36: 0.08
A37: 6th | B37: 12.18 | C37: 0.07
A38: 7th | B38: 10.44 | C38: 0.06
A39: Totals | B39: =SUM(B32:B38) -> 149.64 | D39: =SUM(D32:D38) -> 24.36 | E39: =C32+C33+C34+C35+C36+C37+C38+E32+E33+E34+E35 -> 1
A40: =SUM(B39+D39) -> 174
A41: $25,001 - $35,000 Payes 12 Places 8 to 1D, 4 to 2D
A42: Placings | B42: 1D | D42: 2D
A43: 1st | B43: =$F$4*C43 -> 33.06 | C43: 0.19 | D43: =$F$4*E43 -> 8.7 | E43: 0.05
A44: 2nd | B44: =$F$4*C44 -> 26.1 | C44: 0.15 | D44: =$F$4*E44 -> 6.96 | E44: 0.04
A45: 3rd | B45: 20.88 | C45: 0.12 | D45: 5.22 | E45: 0.03
A46: 4th | B46: 17.4 | C46: 0.1 | D46: 3.48 | E46: 0.02
A47: 5th | B47: 15.66 | C47: 0.09
A48: 6th | B48: 13.92 | C48: 0.08
A49: 7th | B49: 12.18 | C49: 0.07
A50: 8th | B50: 10.44 | C50: 0.06
A51: Totals | B51: =SUM(B43:B50) -> 149.64 | D51: =SUM(D43:D46) -> 24.36 | E51: =C43+C44+C45+C46+C47+C48+C49+C50+E43+E44+E45+E46 -> 1
A52: =D51+B51 -> 174

Sheet 2D Payout
A1: 2D Payout
A2: Entry Fee | B2: # Entries | C2: % Payback | D2: Added $ | E2: Total Payout
A3: 25 | B3: 18 | C3: 0.8 | E3: =(A3*$C$3)*B3+D3 -> 360
A5: % in each D | B5: 0.6 | C5: 0.4 | D5: Total % = | E5: =SUM(B5:C5) -> 1
B6: 1D | C6: 2D
B7: =(($A$3*$B$3*$C$3*$B$5)+($D$3*$B$5)) -> 216 | C7: =(($A$3*$B$3*$C$3*$C$5)+($D$3*$C$5)) -> 144
A8: Totals | B8: =SUM(B7) -> 216 | C8: =SUM(C7) -> 144 | D8: =SUM(B8:C8) -> 360
A10: For 1-7 riders 1 place
A11: Placings | B11: 1D | C11: 2D
A12: 1st | B12: =$B$7*$E$12 -> 216 | C12: =$C$7*$E$5 -> 144 | D12: è | E12: 1
A13: Totals | B13: =SUM(B12:B12) -> 216 | C13: =SUM(C12:C12) -> 144 | D13: =SUM(B13:C13) -> 360 | E13: =SUM(E12) -> 1
A15: For 8-11 riders 2 places
A16: Placings | B16: 1D | C16: 2D
A17: 1st | B17: =$B$7*$E$17 -> 129.6 | C17: =$C$7*$E$17 -> 86.4 | D17: è | E17: 0.6
A18: 2nd | B18: =$B$7*$E$18 -> 86.4 | C18: =$C$7*$E$18 -> 57.6 | D18: è | E18: 0.4
A19: Totals | B19: =SUM(B17:B18) -> 216 | C19: =SUM(C17:C18) -> 144 | D19: =SUM(B19:C19) -> 360 | E19: =SUM(E17:E18) -> 1
A21: For 12-15 riders 3 places
A22: Placings | B22: 1D | C22: 2D
A23: 1st | B23: =$B$7*$E$23 -> 108 | C23: =$C$7*$E$23 -> 72 | D23: è | E23: 0.5
A24: 2nd | B24: =$B$7*$E$24 -> 64.8 | C24: =$C$7*$E$24 -> 43.2 | D24: è | E24: 0.3
A25: 3rd | B25: =$B$7*$E$25 -> 43.2 | C25: =$C$7*$E$25 -> 28.8 | D25: è | E25: 0.2
A26: Totals | B26: =SUM(B23:B25) -> 216 | C26: =SUM(C23:C25) -> 144 | D26: =SUM(B26:C26) -> 360 | E26: =SUM(E23:E25) -> 1
A28: For 16-19 riders 4 places
A29: Placings | B29: 1D | C29: 2D
A30: 1st | B30: =$B$7*$E$30 -> 86.4 | C30: =$C$7*$E$30 -> 57.6 | D30: è | E30: 0.4
A31: 2nd | B31: =$B$7*$E$31 -> 64.8 | C31: =$C$7*$E$31 -> 43.2 | D31: è | E31: 0.3
A32: 3rd | B32: =$B$7*$E$32 -> 43.2 | C32: =$C$7*$E$32 -> 28.8 | D32: è | E32: 0.2
A33: 4th | B33: =$B$7*$E$33 -> 21.6 | C33: =$C$7*$E$33 -> 14.4 | D33: è | E33: 0.1
A34: Totals | B34: =SUM(B30:B33) -> 216 | C34: =SUM(C30:C33) -> 144 | D34: =SUM(B34:C34) -> 360 | E34: =SUM(E30:E33) -> 1
A36: For 20-23 riders 5 places
A37: Placings | B37: 1D | C37: 2D
A38: 1st | B38: =$B$7*$E$38 -> 64.8 | C38: =$C$7*$E$38 -> 43.2 | D38: è | E38: 0.3
A39: 2nd | B39: =$B$7*$E$39 -> 54 | C39: =$C$7*$E$39 -> 36 | D39: è | E39: 0.25
A40: 3rd | B40: =$B$7*$E$40 -> 43.2 | C40: =$C$7*$E$40 -> 28.8 | D40: è | E40: 0.2
A41: 4th | B41: =$B$7*$E$41 -> 32.4 | C41: =$C$7*$E$41 -> 21.6 | D41: è | E41: 0.15
A42: 5th | B42: =$B$7*$E$42 -> 21.6 | C42: =$C$7*$E$42 -> 14.4 | D42: è | E42: 0.1
A43: Totals | B43: =SUM(B38:B42) -> 216 | C43: =SUM(C38:C42) -> 144 | D43: =SUM(B43:C43) -> 360 | E43: =SUM(E38:E42) -> 1
A45: For 24-27 riders 6 places
A46: Placings | B46: 1D | C46: 2D
A47: 1st | B47: =$B$7*$E$47 -> 54 | C47: =$C$7*$E$47 -> 36 | D47: è | E47: 0.25
A48: 2nd | B48: =$B$7*$E$48 -> 43.2 | C48: =$C$7*$E$48 -> 28.8 | D48: è | E48: 0.2
A49: 3rd | B49: =$B$7*$E$49 -> 38.88 | C49: =$C$7*$E$49 -> 25.92 | D49: è | E49: 0.18
A50: 4th | B50: =$B$7*$E$50 -> 32.4 | C50: =$C$7*$E$50 -> 21.6 | D50: è | E50: 0.15
A51: 5th | B51: =$B$7*$E$51 -> 25.92 | C51: =$C$7*$E$51 -> 17.28 | D51: è | E51: 0.12
A52: 6th | B52: =$B$7*$E$52 -> 21.6 | C52: =$C$7*$E$52 -> 14.4 | D52: è | E52: 0.1
A53: Totals | B53: =SUM(B47:B52) -> 216 | C53: =SUM(C47:C52) -> 144 | D53: =SUM(B53:C53) -> 360 | E53: =SUM(E47:E52) -> 1
A55: For 28-31 riders 7 places
A56: Placings | B56: 1D | C56: 2D
A57: 1st | B57: =$B$7*$E$57 -> 47.52 | C57: =$C$7*$E$57 -> 31.68 | D57: è | E57: 0.22
A58: 2nd | B58: =$B$7*$E$58 -> 38.88 | C58: =$C$7*$E$58 -> 25.92 | D58: è | E58: 0.18
A59: 3rd | B59: =$B$7*$E$59 -> 34.56 | C59: =$C$7*$E$59 -> 23.04 | D59: è | E59: 0.16
A60: 4th | B60: =$B$7*$E$60 -> 30.24 | C60: =$C$7*$E$60 -> 20.16 | D60: è | E60: 0.14
A61: 5th | B61: =$B$7*$E$61 -> 25.92 | C61: =$C$7*$E$61 -> 17.28 | D61: è | E61: 0.12
A62: 6th | B62: =$B$7*$E$62 -> 21.6 | C62: =$C$7*$E$62 -> 14.4 | D62: è | E62: 0.1
A63: 7th | B63: =$B$7*$E$63 -> 17.28 | C63: =$C$7*$E$63 -> 11.52 | D63: è | E63: 0.08
A64: Totals | B64: =SUM(B57:B63) -> 216 | C64: =SUM(C57:C63) -> 144 | D64: =SUM(B64:C64) -> 360 | E64: =SUM(E57:E63) -> 1
A66: For 32 or more riders 8 places
A67: Placings | B67: 1D | C67: 2D
A68: 1st | B68: =$B$7*$E$68 -> 49.68 | C68: =$C$7*$E$68 -> 33.12 | D68: è | E68: 0.23
A69: 2nd | B69: =$B$7*$E$69 -> 43.2 | C69: =$C$7*$E$69 -> 28.8 | D69: è | E69: 0.2
A70: 3rd | B70: =$B$7*$E$70 -> 36.72 | C70: =$C$7*$E$70 -> 24.48 | D70: è | E70: 0.17
A71: 4th | B71: =$B$7*$E$71 -> 30.24 | C71: =$C$7*$E$71 -> 20.16 | D71: è | E71: 0.14
A72: 5th | B72: =$B$7*$E$72 -> 23.76 | C72: =$C$7*$E$72 -> 15.84 | D72: è | E72: 0.11
A73: 6th | B73: =$B$7*$E$73 -> 17.28 | C73: =$C$7*$E$73 -> 11.52 | D73: è | E73: 0.08
A74: 7th | B74: =$B$7*$E$74 -> 10.8 | C74: =$C$7*$E$74 -> 7.2 | D74: è | E74: 0.05
A75: 8th | B75: =$B$7*$E$75 -> 4.32 | C75: =$C$7*$E$75 -> 2.88 | D75: è | E75: 0.02
A76: Totals | B76: =SUM(B68:B75) -> 216 | C76: =SUM(C68:C75) -> 144 | D76: =SUM(B76:C76) -> 360 | E76: =SUM(E68:E75) -> 1

Sheet 3D Payout (hidden)
A1: 3D Payout
A2: Entry Fee | B2: # Entries | C2: % Payback | D2: $ From Entry | E2: Added $ | F2: Total Payout
A3: 10 | B3: 3 | C3: 0.8 | D3: =$A$3*$C$3*$B$3 -> 24 | F3: =$D$3+$E$3 -> 24
A5: % in each D | B5: 0.5 | C5: 0.3 | D5: 0.2 | E5: Total % = | F5: =SUM(B5:D5) -> 1
B6: 1D | C6: 2D | D6: 3D
B7: =(($A$3*$B$3*$C$3*$B$5)+($E$3*$B$5)) -> 12 | C7: =(($A$3*$B$3*$C$3*$C$5)+($E$3*$C$5)) -> 7.2 | D7: =(($A$3*$B$3*$C$3*$D$5)+($E$3*$D$5)) -> 4.8
A8: Totals | B8: =SUM(B7) -> 12 | C8: =SUM(C7) -> 7.2 | D8: 4.8 | E8: =SUM(B8:D8) -> 24
A10: For 1-10 riders 1 place
A11: Placings | B11: 1D | C11: 2D | D11: 3D
A12: 1st | B12: =$B$7*$F$12 -> 12 | C12: =$C$7*$F$12 -> 7.2 | D12: =$D$7*$F$12 -> 4.8 | E12: è | F12: 1
A13: Totals | B13: =SUM(B12:B12) -> 12 | C13: =SUM(C12:C12) -> 7.2 | D13: =SUM(D12:D12) -> 4.8 | E13: =SUM(B13:D13) -> 24 | F13: =SUM(F12) -> 1
A15: For 11-15 riders 2 places
A16: Placings | B16: 1D | C16: 2D | D16: 3D
A17: 1st | B17: =$B$7*$F$17 -> 7.2 | C17: =$C$7*$F$17 -> 4.32 | D17: =$D$7*$F$17 -> 2.88 | E17: è | F17: 0.6
A18: 2nd | B18: =$B$7*$F$18 -> 4.8 | C18: =$C$7*$F$18 -> 2.88 | D18: =$D$7*$F$18 -> 1.92 | E18: è | F18: 0.4
A19: Totals | B19: =SUM(B17:B18) -> 12 | C19: =SUM(C17:C18) -> 7.2 | D19: =SUM(D17:D18) -> 4.8 | E19: =SUM(B19:D19) -> 24 | F19: =SUM(F17:F18) -> 1
A21: For 16-30 riders 3 places
A22: Placings | B22: 1D | C22: 2D | D22: 3D
A23: 1st | B23: =$B$7*$F$23 -> 6 | C23: =$C$7*$F$23 -> 3.6 | D23: =$D$7*$F$23 -> 2.4 | E23: è | F23: 0.5
A24: 2nd | B24: =$B$7*$F$24 -> 3.6 | C24: =$C$7*$F$24 -> 2.16 | D24: =$D$7*$F$24 -> 1.44 | E24: è | F24: 0.3
A25: 3rd | B25: =$B$7*$F$25 -> 2.4 | C25: =$C$7*$F$25 -> 1.44 | D25: =$D$7*$F$25 -> 0.96 | E25: è | F25: 0.2
A26: Totals | B26: =SUM(B23:B25) -> 12 | C26: =SUM(C23:C25) -> 7.2 | D26: =SUM(D22:D25) -> 4.8 | E26: =SUM(B26:D26) -> 24 | F26: =SUM(F23:F25) -> 1
A28: For 31-60 riders 4 places
A29: Placings | B29: 1D | C29: 2D | D29: 3D
A30: 1st | B30: =$B$7*$F$30 -> 5.04 | C30: =$C$7*$F$30 -> 3.024 | D30: =$D$7*$F$30 -> 2.016 | E30: è | F30: 0.42
A31: 2nd | B31: =$B$7*$F$31 -> 3.48 | C31: =$C$7*$F$31 -> 2.088 | D31: =$D$7*$F$31 -> 1.392 | E31: è | F31: 0.29
A32: 3rd | B32: =$B$7*$F$32 -> 2.28 | C32: =$C$7*$F$32 -> 1.368 | D32: =$D$7*$F$32 -> 0.912 | E32: è | F32: 0.19
A33: 4th | B33: =$B$7*$F$33 -> 1.2 | C33: =$C$7*$F$33 -> 0.72 | D33: =$D$7*$F$33 -> 0.48 | E33: è | F33: 0.1
A34: Totals | B34: =SUM(B30:B33) -> 12 | C34: =SUM(C30:C33) -> 7.2 | D34: =SUM(D30:D33) -> 4.8 | E34: =SUM(B34:D34) -> 24 | F34: =SUM(F30:F33) -> 1
A36: For 61-90 riders 5 places
A37: Placings | B37: 1D | C37: 2D | D37: 3D
A38: 1st | B38: =$B$7*$F$38 -> 4.56 | C38: =$C$7*$F$38 -> 2.736 | D38: =$D$7*$F$38 -> 1.824 | E38: è | F38: 0.38
A39: 2nd | B39: =$B$7*$F$39 -> 3.36 | C39: =$C$7*$F$39 -> 2.016 | D39: =$D$7*$F$39 -> 1.344 | E39: è | F39: 0.28
A40: 3rd | B40: =$B$7*$F$40 -> 2.16 | C40: =$C$7*$F$40 -> 1.296 | D40: =$D$7*$F$40 -> 0.864 | E40: è | F40: 0.18
A41: 4th | B41: =$B$7*$F$41 -> 1.2 | C41: =$C$7*$F$41 -> 0.72 | D41: =$D$7*$F$41 -> 0.48 | E41: è | F41: 0.1
A42: 5th | B42: =$B$7*$F$42 -> 0.72 | C42: =$C$7*$F$42 -> 0.432 | D42: =$D$7*$F$42 -> 0.288 | E42: è | F42: 0.06
A43: Totals | B43: =SUM(B38:B42) -> 12 | C43: =SUM(C38:C42) -> 7.2 | D43: =SUM(D38:D42) -> 4.8 | E43: =SUM(B43:D43) -> 24 | F43: =SUM(F38:F42) -> 1
A45: For 91-120 riders 6 places
A46: Placings | B46: 1D | C46: 2D | D46: 3D
A47: 1st | B47: =$B$7*$F$47 -> 4.32 | C47: =$C$7*$F$47 -> 2.592 | D47: =$D$7*$F$47 -> 1.728 | E47: è | F47: 0.36
A48: 2nd | B48: =$B$7*$F$48 -> 3.12 | C48: =$C$7*$F$48 -> 1.872 | D48: =$D$7*$F$48 -> 1.248 | E48: è | F48: 0.26
A49: 3rd | B49: =$B$7*$F$49 -> 1.92 | C49: =$C$7*$F$49 -> 1.152 | D49: =$D$7*$F$49 -> 0.768 | E49: è | F49: 0.16
A50: 4th | B50: =$B$7*$F$50 -> 1.2 | C50: =$C$7*$F$50 -> 0.72 | D50: =$D$7*$F$50 -> 0.48 | E50: è | F50: 0.1
A51: 5th | B51: =$B$7*$F$51 -> 0.84 | C51: =$C$7*$F$51 -> 0.504 | D51: =$D$7*$F$51 -> 0.336 | E51: è | F51: 0.07
A52: 6th | B52: =$B$7*$F$52 -> 0.6 | C52: =$C$7*$F$52 -> 0.36 | D52: =$D$7*$F$52 -> 0.24 | E52: è | F52: 0.05
A53: Totals | B53: =SUM(B47:B52) -> 12 | C53: =SUM(C47:C52) -> 7.2 | D53: =SUM(D47:D52) -> 4.8 | E53: =SUM(B53:D53) -> 24 | F53: =SUM(F47:F52) -> 1
A55: For 121-200 riders 7 places
A56: Placings | B56: 1D | C56: 2D | D56: 3D
A57: 1st | B57: =$B$7*$F$57 -> 3.12 | C57: =$C$7*$F$57 -> 1.872 | D57: =$D$7*$F$57 -> 1.248 | E57: è | F57: 0.26
A58: 2nd | B58: =$B$7*$F$58 -> 2.4 | C58: =$C$7*$F$58 -> 1.44 | D58: =$D$7*$F$58 -> 0.96 | E58: è | F58: 0.2
A59: 3rd | B59: =$B$7*$F$59 -> 1.8 | C59: =$C$7*$F$59 -> 1.08 | D59: =$D$7*$F$59 -> 0.72 | E59: è | F59: 0.15
A60: 4th | B60: =$B$7*$F$60 -> 1.44 | C60: =$C$7*$F$60 -> 0.864 | D60: =$D$7*$F$60 -> 0.576 | E60: è | F60: 0.12
A61: 5th | B61: =$B$7*$F$61 -> 1.2 | C61: =$C$7*$F$61 -> 0.72 | D61: =$D$7*$F$61 -> 0.48 | E61: è | F61: 0.1
A62: 6th | B62: =$B$7*$F$62 -> 1.08 | C62: =$C$7*$F$62 -> 0.648 | D62: =$D$7*$F$62 -> 0.432 | E62: è | F62: 0.09
A63: 7th | B63: =$B$7*$F$63 -> 0.96 | C63: =$C$7*$F$63 -> 0.576 | D63: =$D$7*$F$63 -> 0.384 | E63: è | F63: 0.08
A64: Totals | B64: =SUM(B57:B63) -> 12 | C64: =SUM(C57:C63) -> 7.2 | D64: =SUM(D57:D63) -> 4.8 | E64: =SUM(B64:D64) -> 24 | F64: =SUM(F57:F63) -> 1
A66: For 201 or more riders 8 places
A67: Placings | B67: 1D | C67: 2D | D67: 3D
A68: 1st | B68: =$B$7*0.24 -> 2.88 | C68: =$C$7*0.24 -> 1.728 | D68: =$D$7*0.24 -> 1.152 | E68: è | F68: 0.24
A69: 2nd | B69: =$B$7*0.18 -> 2.16 | C69: =$C$7*0.18 -> 1.296 | D69: =$D$7*0.18 -> 0.864 | E69: è | F69: 0.18
A70: 3rd | B70: =$B$7*0.15 -> 1.8 | C70: =$C$7*0.15 -> 1.08 | D70: =$D$7*0.15 -> 0.72 | E70: è | F70: 0.15
A71: 4th | B71: =$B$7*0.12 -> 1.44 | C71: =$C$7*0.12 -> 0.864 | D71: =$D$7*0.12 -> 0.576 | E71: è | F71: 0.12
A72: 5th | B72: =$B$7*0.1 -> 1.2 | C72: =$C$7*0.1 -> 0.72 | D72: =$D$7*0.1 -> 0.48 | E72: è | F72: 0.1
A73: 6th | B73: =$B$7*0.08 -> 0.96 | C73: =$C$7*0.08 -> 0.576 | D73: =$D$7*0.08 -> 0.384 | E73: è | F73: 0.08
A74: 7th | B74: =$B$7*0.07 -> 0.84 | C74: =$C$7*0.07 -> 0.504 | D74: =$D$7*0.07 -> 0.336 | E74: è | F74: 0.07
A75: 8th | B75: =$B$7*0.06 -> 0.72 | C75: =$C$7*0.06 -> 0.432 | D75: =$D$7*0.06 -> 0.288 | E75: è | F75: 0.06
A76: Totals | B76: =SUM(B68:B75) -> 12 | C76: =SUM(C68:C75) -> 7.2 | D76: =SUM(D68:D75) -> 4.8 | E76: =SUM(B76:D76) -> 24 | F76: =SUM(F68:F75) -> 1

Sheet 4D Payout BBR (hidden)
A1: 4D Payout BBR
A2: Entry Fee | B2: # Entries | C2: % Payback | D2: $ From Entry | E2: Added $ | F2: Total Payout
A3: 40 | B3: 200 | C3: 0.8 | D3: =$A$3*$C$3*$B$3 -> 6400 | E3: 1100 | F3: =($A$3*$C$3)*$B$3+$E$3 -> 7500
A5: % in each D | B5: 0.35 | C5: 0.3 | D5: 0.2 | E5: 0.15 | F5: Total % Payout | G5: =SUM(B5:E5) -> 1
B6: 1D | C6: 2D | D6: 3D | E6: 4D
B7: =(($A$3*$B$3*$C$3*0.35)+($E$3/4)) -> 2515 | C7: =(($A$3*$B$3*$C$3*0.3)+($E$3/4)) -> 2195 | D7: =(($A$3*$B$3*$C$3*0.2)+($E$3/4)) -> 1555 | E7: =(($A$3*$B$3*$C$3*0.15)+($E$3/4)) -> 1235
A8: Totals | B8: =SUM(B7) -> 2515 | C8: =SUM(C7) -> 2195 | D8: 1555 | E8: 1235 | F8: =SUM(B8:E8) -> 7500
A10: For 1-16 riders 1 place
A11: Placings | B11: 1D | C11: 2D | D11: 3D | E11: 4D
A12: 1st | B12: =$B$7*$G$12 -> 2515 | C12: =$C$7*$G$12 -> 2195 | D12: =$D$7*$G$12 -> 1555 | E12: =$E$7*$G$12 -> 1235 | F12: è | G12: 1
A13: Totals | B13: =SUM(B12:B12) -> 2515 | C13: =SUM(C12:C12) -> 2195 | D13: =SUM(D12:D12) -> 1555 | E13: =SUM(E12:E12) -> 1235 | F13: =SUM(B13:E13) -> 7500 | G13: =SUM(G12) -> 1
A15: For 17-33 riders 2 places
A16: Placings | B16: 1D | C16: 2D | D16: 3D | E16: 4D
A17: 1st | B17: =$B$7*$G$17 -> 1509 | C17: =$C$7*$G$17 -> 1317 | D17: =$D$7*$G$17 -> 933 | E17: =$E$7*$G$17 -> 741 | F17: è | G17: 0.6
A18: 2nd | B18: =$B$7*$G$18 -> 1006 | C18: =$C$7*$G$18 -> 878 | D18: =$D$7*$G$18 -> 622 | E18: =$E$7*$G$18 -> 494 | F18: è | G18: 0.4
A19: Totals | B19: =SUM(B17:B18) -> 2515 | C19: =SUM(C17:C18) -> 2195 | D19: =SUM(D17:D18) -> 1555 | E19: =SUM(E17:E18) -> 1235 | F19: =SUM(B19:E19) -> 7500 | G19: =SUM(G17:G18) -> 1
A21: For 34-66 riders 3 places
A22: Placings | B22: 1D | C22: 2D | D22: 3D | E22: 4D
A23: 1st | B23: =$B$7*$G$23 -> 1257.5 | C23: =$C$7*$G$23 -> 1097.5 | D23: =$D$7*$G$23 -> 777.5 | E23: =$E$7*$G$23 -> 617.5 | F23: è | G23: 0.5
A24: 2nd | B24: =$B$7*$G$24 -> 754.5 | C24: =$C$7*$G$24 -> 658.5 | D24: =$D$7*$G$24 -> 466.5 | E24: =$E$7*$G$24 -> 370.5 | F24: è | G24: 0.3
A25: 3rd | B25: =$B$7*$G$25 -> 503 | C25: =$C$7*$G$25 -> 439 | D25: =$D$7*$G$25 -> 311 | E25: =$E$7*$G$25 -> 247 | F25: è | G25: 0.2
A26: Totals | B26: =SUM(B23:B25) -> 2515 | C26: =SUM(C23:C25) -> 2195 | D26: =SUM(D23:D25) -> 1555 | E26: =SUM(E23:E25) -> 1235 | F26: =SUM(B26:E26) -> 7500 | G26: =SUM(G23:G25) -> 1
A28: For 97-95 riders 4 places
A29: Placings | B29: 1D | C29: 2D | D29: 3D | E29: 4D
A30: 1st | B30: =$B$7*$G$30 -> 1006 | C30: =$C$7*$G$30 -> 878 | D30: =$D$7*$G$30 -> 622 | E30: =$E$7*$G$30 -> 494 | F30: è | G30: 0.4
A31: 2nd | B31: =$B$7*$G$31 -> 754.5 | C31: =$C$7*$G$31 -> 658.5 | D31: =$D$7*$G$31 -> 466.5 | E31: =$E$7*$G$31 -> 370.5 | F31: è | G31: 0.3
A32: 3rd | B32: =$B$7*$G$32 -> 503 | C32: =$C$7*$G$32 -> 439 | D32: =$D$7*$G$32 -> 311 | E32: =$E$7*$G$32 -> 247 | F32: è | G32: 0.2
A33: 4th | B33: =$B$7*$G$33 -> 251.5 | C33: =$C$7*$G$33 -> 219.5 | D33: =$D$7*$G$33 -> 155.5 | E33: =$E$7*$G$33 -> 123.5 | F33: è | G33: 0.1
A34: Totals | B34: =SUM(B30:B33) -> 2515 | C34: =SUM(C30:C33) -> 2195 | D34: =SUM(D30:D33) -> 1555 | E34: =SUM(E30:E33) -> 1235 | F34: =SUM(B34:E34) -> 7500 | G34: =SUM(G30:G33) -> 1
A36: For 96-133 riders 5 places
A37: Placings | B37: 1D | C37: 2D | D37: 3D | E37: 4D
A38: 1st | B38: =$B$7*$G$38 -> 829.95 | C38: =$C$7*$G$38 -> 724.35 | D38: =$D$7*G38 -> 513.15 | E38: =$E$7*$G$38 -> 407.55 | F38: è | G38: 0.33
A39: 2nd | B39: =$B$7*$G$39 -> 679.05 | C39: =$C$7*$G$39 -> 592.65 | D39: =$D$7*$G$39 -> 419.85 | E39: =$E$7*$G$39 -> 333.45 | F39: è | G39: 0.27
A40: 3rd | B40: =$B$7*$G$40 -> 503 | C40: =$C$7*$G$40 -> 439 | D40: =$D$7*$G$40 -> 311 | E40: =$E$7*$G$40 -> 247 | F40: è | G40: 0.2
A41: 4th | B41: =$B$7*$G$41 -> 326.95 | C41: =$C$7*$G$41 -> 285.35 | D41: =$D$7*$G$41 -> 202.15 | E41: =$E$7*$G$41 -> 160.55 | F41: è | G41: 0.13
A42: 5th | B42: =$B$7*$G$42 -> 176.05 | C42: =$C$7*$G$42 -> 153.65 | D42: =$D$7*$G$42 -> 108.85 | E42: =$E$7*$G$42 -> 86.45 | F42: è | G42: 0.07
A43: Totals | B43: =SUM(B38:B42) -> 2515 | C43: =SUM(C38:C42) -> 2195 | D43: =SUM(D38:D42) -> 1555 | E43: =SUM(E38:E42) -> 1235 | F43: =SUM(B43:E43) -> 7500 | G43: =SUM(G38:G42) -> 1
A45: For 134-166 riders 6 places
A46: Placings | B46: 1D | C46: 2D | D46: 3D | E46: 4D
A47: 1st | B47: =$B$7*$G$47 -> 729.35 | C47: =$C$7*$G$47 -> 636.55 | D47: =$D$7*$G$47 -> 450.95 | E47: =$E$7*$G$47 -> 358.15 | F47: è | G47: 0.29
A48: 2nd | B48: =$B$7*$G$48 -> 603.6 | C48: =$C$7*$G$48 -> 526.8 | D48: =$D$7*$G$48 -> 373.2 | E48: =$E$7*$G$48 -> 296.4 | F48: è | G48: 0.24
A49: 3rd | B49: =$B$7*$G$49 -> 477.85 | C49: =$C$7*$G$49 -> 417.05 | D49: =$D$7*$G$49 -> 295.45 | E49: =$E$7*$G$49 -> 234.65 | F49: è | G49: 0.19
A50: 4th | B50: =$B$7*$G$50 -> 352.1 | C50: =$C$7*$G$50 -> 307.3 | D50: =$D$7*$G$50 -> 217.7 | E50: =$E$7*$G$50 -> 172.9 | F50: è | G50: 0.14
A51: 5th | B51: =$B$7*$G$51 -> 226.35 | C51: =$C$7*$G$51 -> 197.55 | D51: =$D$7*$G$51 -> 139.95 | E51: =$E$7*$G$51 -> 111.15 | F51: è | G51: 0.09
A52: 6th | B52: =$B$7*$G$52 -> 125.75 | C52: =$C$7*$G$52 -> 109.75 | D52: =$D$7*$G$52 -> 77.75 | E52: =$E$7*$G$52 -> 61.75 | F52: è | G52: 0.05
A53: Totals | B53: =SUM(B47:B52) -> 2515 | C53: =SUM(C47:C52) -> 2195 | D53: =SUM(D47:D52) -> 1555 | E53: =SUM(E47:E52) -> 1235 | F53: =SUM(B53:E53) -> 7500 | G53: =SUM(G47:G52) -> 1
A55: For 167-222 riders 8 places
A56: Placings | B56: 1D | C56: 2D | D56: 3D | E56: 4D
A57: 1st | B57: =$B$7*$G$57 -> 603.6 | C57: =$C$7*$G$57 -> 526.8 | D57: =$D$7*$G$57 -> 373.2 | E57: =$E$7*$G$57 -> 296.4 | F57: è | G57: 0.24
A58: 2nd | B58: =$B$7*$G$58 -> 503 | C58: =$C$7*$G$58 -> 439 | D58: =$D$7*$G$58 -> 311 | E58: =$E$7*$G$58 -> 247 | F58: è | G58: 0.2
A59: 3rd | B59: =$B$7*$G$59 -> 427.55 | C59: =$C$7*$G$59 -> 373.15 | D59: =$D$7*$G$59 -> 264.35 | E59: =$E$7*$G$59 -> 209.95 | F59: è | G59: 0.17
A60: 4th | B60: =$B$7*$G$60 -> 326.95 | C60: =$C$7*$G$60 -> 285.35 | D60: =$D$7*$G$60 -> 202.15 | E60: =$E$7*$G$60 -> 160.55 | F60: è | G60: 0.13
A61: 5th | B61: =$B$7*$G$61 -> 251.5 | C61: =$C$7*$G$61 -> 219.5 | D61: =$D$7*$G$61 -> 155.5 | E61: =$E$7*$G$61 -> 123.5 | F61: è | G61: 0.1
A62: 6th | B62: =$B$7*$G$62 -> 176.05 | C62: =$C$7*$G$62 -> 153.65 | D62: =$D$7*$G$62 -> 108.85 | E62: =$E$7*$G$62 -> 86.45 | F62: è | G62: 0.07
A63: 7th | B63: =$B$7*$G$63 -> 125.75 | C63: =$C$7*$G$63 -> 109.75 | D63: =$D$7*$G$63 -> 77.75 | E63: =$E$7*$G$63 -> 61.75 | F63: è | G63: 0.05
A64: 8th | B64: =$B$7*$G$64 -> 100.6 | C64: =$C$7*$G$64 -> 87.8 | D64: =$D$7*$G$64 -> 62.2 | E64: =$E$7*$G$64 -> 49.4 | F64: è | G64: 0.04
A65: Totals | B65: =SUM(B57:B64) -> 2515 | C65: =SUM(C57:C64) -> 2195 | D65: =SUM(D57:D64) -> 1555 | E65: =SUM(E57:E64) -> 1235 | F65: =SUM(B65:E65) -> 7500 | G65: =SUM(G57:G64) -> 1
A67: For 223-333 riders 10 places
A68: Placings | B68: 1D | C68: 2D | D68: 3D | E68: 4D
A69: 1st | B69: =$B$7*$G$69 -> 528.15 | C69: =$C$7*$G$69 -> 460.95 | D69: =$D$7*$G$69 -> 326.55 | E69: =$E$7*$G$69 -> 259.35 | F69: è | G69: 0.21
A70: 2nd | B70: =$B$7*$G$70 -> 452.7 | C70: =$C$7*$G$70 -> 395.1 | D70: =$D$7*$G$70 -> 279.9 | E70: =$E$7*$G$70 -> 222.3 | F70: è | G70: 0.18
A71: 3rd | B71: =$B$7*$G$71 -> 377.25 | C71: =$C$7*$G$71 -> 329.25 | D71: =$D$7*$G$71 -> 233.25 | E71: =$E$7*$G$71 -> 185.25 | F71: è | G71: 0.15
A72: 4th | B72: =$B$7*$G$72 -> 301.8 | C72: =$C$7*$G$72 -> 263.4 | D72: =$D$7*$G$72 -> 186.6 | E72: =$E$7*$G$72 -> 148.2 | F72: è | G72: 0.12
A73: 5th | B73: =$B$7*$G$73 -> 226.35 | C73: =$C$7*$G$73 -> 197.55 | D73: =$D$7*$G$73 -> 139.95 | E73: =$E$7*$G$73 -> 111.15 | F73: è | G73: 0.09
A74: 6th | B74: =$B$7*$G$74 -> 176.05 | C74: =$C$7*$G$74 -> 153.65 | D74: =$D$7*$G$74 -> 108.85 | E74: =$E$7*$G$74 -> 86.45 | F74: è | G74: 0.07
A75: 7th | B75: =$B$7*$G$75 -> 150.9 | C75: =$C$7*$G$75 -> 131.7 | D75: =$D$7*$G$75 -> 93.3 | E75: =$E$7*$G$75 -> 74.1 | F75: è | G75: 0.06
A76: 8th | B76: =$B$7*$G$76 -> 125.75 | C76: =$C$7*$G$76 -> 109.75 | D76: =$D$7*$G$76 -> 77.75 | E76: =$E$7*$G$76 -> 61.75 | F76: è | G76: 0.05
A77: 9th | B77: =$B$7*$G$77 -> 100.6 | C77: =$C$7*$G$77 -> 87.8 | D77: =$D$7*$G$77 -> 62.2 | E77: =$E$7*$G$77 -> 49.4 | F77: è | G77: 0.04
A78: 10th | B78: =$B$7*$G$78 -> 75.45 | C78: =$C$7*$G$78 -> 65.85 | D78: =$D$7*$G$78 -> 46.65 | E78: =$E$7*$G$78 -> 37.05 | F78: è | G78: 0.03
A79: Totals | B79: =SUM(B69:B78) -> 2515 | C79: =SUM(C69:C78) -> 2195 | D79: =SUM(D69:D78) -> 1555 | E79: =SUM(E69:E78) -> 1235 | F79: =B79+C79+D79+E79 -> 7500 | G79: =SUM(G69:G78) -> 1
A81: For 334-500 riders 12 places
A82: Placings | B82: 1D | C82: 2D | D82: 3D | E82: 4D
A83: 1st | B83: =$B$7*$G$83 -> 477.85 | C83: =$C$7*$G$83 -> 417.05 | D83: =$D$7*$G$83 -> 295.45 | E83: =$E$7*$G$83 -> 234.65 | F83: è | G83: 0.19
A84: 2nd | B84: =$B$7*$G$84 -> 377.25 | C84: =$C$7*$G$84 -> 329.25 | D84: =$D$7*$G$84 -> 233.25 | E84: =$E$7*$G$84 -> 185.25 | F84: è | G84: 0.15
A85: 3rd | B85: =$B$7*$G$85 -> 301.8 | C85: =$C$7*$G$85 -> 263.4 | D85: =$D$7*$G$85 -> 186.6 | E85: =$E$7*$G$85 -> 148.2 | F85: è | G85: 0.12
A86: 4th | B86: =$B$7*$G$86 -> 251.5 | C86: =$C$7*$G$86 -> 219.5 | D86: =$D$7*$G$86 -> 155.5 | E86: =$E$7*$G$86 -> 123.5 | F86: è | G86: 0.1
A87: 5th | B87: =$B$7*$G$87 -> 226.35 | C87: =$C$7*$G$87 -> 197.55 | D87: =$D$7*$G$87 -> 139.95 | E87: =$E$7*$G$87 -> 111.15 | F87: è | G87: 0.09
A88: 6th | B88: =$B$7*$G$88 -> 201.2 | C88: =$C$7*$G$88 -> 175.6 | D88: =$D$7*$G$88 -> 124.4 | E88: =$E$7*$G$88 -> 98.8 | F88: è | G88: 0.08
A89: 7th | B89: =$B$7*$G$89 -> 176.05 | C89: =$C$7*$G$89 -> 153.65 | D89: =$D$7*$G$89 -> 108.85 | E89: =$E$7*$G$89 -> 86.45 | F89: è | G89: 0.07
A90: 8th | B90: =$B$7*$G$90 -> 150.9 | C90: =$C$7*$G$90 -> 131.7 | D90: =$D$7*$G$90 -> 93.3 | E90: =$E$7*$G$90 -> 74.1 | F90: è | G90: 0.06
A91: 9th | B91: =$B$7*$G$91 -> 125.75 | C91: =$C$7*$G$91 -> 109.75 | D91: =$D$7*$G$91 -> 77.75 | E91: =$E$7*$G$91 -> 61.75 | F91: è | G91: 0.05
A92: 10th | B92: =$B$7*$G$92 -> 100.6 | C92: =$C$7*$G$92 -> 87.8 | D92: =$D$7*$G$92 -> 62.2 | E92: =$E$7*$G$92 -> 49.4 | F92: è | G92: 0.04
A93: 11th | B93: =$B$7*$G$93 -> 75.45 | C93: =$C$7*$G$93 -> 65.85 | D93: =$D$7*$G$93 -> 46.65 | E93: =$E$7*$G$93 -> 37.05 | F93: è | G93: 0.03
A94: 12th | B94: =$B$7*$G$94 -> 50.3 | C94: =$C$7*$G$94 -> 43.9 | D94: =$D$7*$G$94 -> 31.1 | E94: =$E$7*$G$94 -> 24.7 | F94: è | G94: 0.02
A95: Totals | B95: =SUM(B83:B94) -> 2515 | C95: =SUM(C83:C94) -> 2195 | D95: 1555 | E95: 1235 | F95: =B95+C95+D95+E95 -> 7500 | G95: =SUM(G83:G94) -> 1
A97: For 501-750 riders 15 places
A98: Placings | B98: 1D | C98: 2D | D98: 3D | E98: 4D
A99: 1st | B99: =$B$7*$G$99 -> 452.7 | C99: =$C$7*$G$99 -> 395.1 | D99: =$D$7*$G$99 -> 279.9 | E99: =$E$7*$G$99 -> 222.3 | F99: è | G99: 0.18
A100: 2nd | B100: =$B$7*$G$100 -> 377.25 | C100: =$C$7*$G$100 -> 329.25 | D100: =$D$7*$G$100 -> 233.25 | E100: =$E$7*$G$100 -> 185.25 | F100: è | G100: 0.15
A101: 3rd | B101: =$B$7*$G$101 -> 301.8 | C101: =$C$7*$G$101 -> 263.4 | D101: =$D$7*$G$101 -> 186.6 | E101: =$E$7*$G$101 -> 148.2 | F101: è | G101: 0.12
A102: 4th | B102: =$B$7*$G$102 -> 251.5 | C102: =$C$7*$G$102 -> 219.5 | D102: =$D$7*$G$102 -> 155.5 | E102: =$E$7*$G$102 -> 123.5 | F102: è | G102: 0.1
A103: 5th | B103: =$B$7*$G$103 -> 213.775 | C103: =$C$7*$G$103 -> 186.575 | D103: =$D$7*$G$103 -> 132.175 | E103: =$E$7*$G$103 -> 104.975 | F103: è | G103: 0.085
A104: 6th | B104: =$B$7*$G$104 -> 176.05 | C104: =$C$7*$G$104 -> 153.65 | D104: =$D$7*$G$104 -> 108.85 | E104: =$E$7*$G$104 -> 86.45 | F104: è | G104: 0.07
A105: 7th | B105: =$B$7*$G$105 -> 150.9 | C105: =$C$7*$G$105 -> 131.7 | D105: =$D$7*$G$105 -> 93.3 | E105: =$E$7*$G$105 -> 74.1 | F105: è | G105: 0.06
A106: 8th | B106: =$B$7*$G$106 -> 125.75 | C106: =$C$7*$G$106 -> 109.75 | D106: =$D$7*$G$106 -> 77.75 | E106: =$E$7*$G$106 -> 61.75 | F106: è | G106: 0.05
A107: 9th | B107: =$B$7*$G$107 -> 106.8875 | C107: =$C$7*$G$107 -> 93.2875 | D107: =$D$7*$G$107 -> 66.0875 | E107: =$E$7*$G$107 -> 52.4875 | F107: è | G107: 0.0425
A108: 10th | B108: =$B$7*$G$108 -> 88.025 | C108: =$C$7*$G$108 -> 76.825 | D108: =$D$7*$G$108 -> 54.425 | E108: =$E$7*$G$108 -> 43.225 | F108: è | G108: 0.035
A109: 11th | B109: =$B$7*$G$109 -> 75.45 | C109: =$C$7*$G$109 -> 65.85 | D109: =$D$7*$G$109 -> 46.65 | E109: =$E$7*$G$109 -> 37.05 | F109: è | G109: 0.03
A110: 12th | B110: =$B$7*$G$110 -> 62.875 | C110: =$C$7*$G$110 -> 54.875 | D110: =$D$7*$G$110 -> 38.875 | E110: =$E$7*$G$110 -> 30.875 | F110: è | G110: 0.025
A111: 13th | B111: =$B$7*$G$111 -> 50.3 | C111: =$C$7*$G$111 -> 43.9 | D111: =$D$7*$G$111 -> 31.1 | E111: =$E$7*$G$111 -> 24.7 | F111: è | G111: 0.02
A112: 14th | B112: =$B$7*$G$112 -> 44.0125 | C112: =$C$7*$G$112 -> 38.4125 | D112: =$D$7*$G$112 -> 27.2125 | E112: =$E$7*$G$112 -> 21.6125 | F112: è | G112: 0.0175
A113: 15th | B113: =$B$7*$G$113 -> 37.725 | C113: =$C$7*$G$113 -> 32.925 | D113: =$D$7*$G$113 -> 23.325 | E113: =$E$7*$G$113 -> 18.525 | F113: è | G113: 0.015
A114: Totals | B114: =SUM(B99:B113) -> 2515 | C114: =SUM(C99:C113) -> 2195 | D114: 1555 | E114: 1235 | F114: =B114+C114+D114+E114 -> 7500 | G114: =SUM(G99:G113) -> 1
A116: For 751-1200 riders 20 places
A117: Placings | B117: 1D | C117: 2D | D117: 3D | E117: 4D
A118: 1st | B118: =$B$7*$G$118 -> 352.1 | C118: =$C$7*$G$118 -> 307.3 | D118: =$D$7*$G$118 -> 217.7 | E118: =$E$7*$G$118 -> 172.9 | F118: è | G118: 0.14
A119: 2nd | B119: =$B$7*$G$119 -> 276.65 | C119: =$C$7*$G$119 -> 241.45 | D119: =$D$7*$G$119 -> 171.05 | E119: =$E$7*$G$119 -> 135.85 | F119: è | G119: 0.11
A120: 3rd | B120: =$B$7*$G$120 -> 226.35 | C120: =$C$7*$G$120 -> 197.55 | D120: =$D$7*$G$120 -> 139.95 | E120: =$E$7*$G$120 -> 111.15 | F120: è | G120: 0.09
A121: 4th | B121: =$B$7*$G$121 -> 193.655 | C121: =$C$7*$G$121 -> 169.015 | D121: =$D$7*$G$121 -> 119.735 | E121: =$E$7*$G$121 -> 95.095 | F121: è | G121: 0.077
A122: 5th | B122: =$B$7*$G$122 -> 176.05 | C122: =$C$7*$G$122 -> 153.65 | D122: =$D$7*$G$122 -> 108.85 | E122: =$E$7*$G$122 -> 86.45 | F122: è | G122: 0.07
A123: 6th | B123: =$B$7*$G$123 -> 163.475 | C123: =$C$7*$G$123 -> 142.675 | D123: =$D$7*$G$123 -> 101.075 | E123: =$E$7*$G$123 -> 80.275 | F123: è | G123: 0.065
A124: 7th | B124: =$B$7*$G$124 -> 150.9 | C124: =$C$7*$G$124 -> 131.7 | D124: =$D$7*$G$124 -> 93.3 | E124: =$E$7*$G$124 -> 74.1 | F124: è | G124: 0.06
A125: 8th | B125: =$B$7*$G$125 -> 138.325 | C125: =$C$7*$G$125 -> 120.725 | D125: =$D$7*$G$125 -> 85.525 | E125: =$E$7*$G$125 -> 67.925 | F125: è | G125: 0.055
A126: 9th | B126: =$B$7*$G$126 -> 125.75 | C126: =$C$7*$G$126 -> 109.75 | D126: =$D$7*$G$126 -> 77.75 | E126: =$E$7*$G$126 -> 61.75 | F126: è | G126: 0.05
A127: 10th | B127: =$B$7*$G$127 -> 113.175 | C127: =$C$7*$G$127 -> 98.775 | D127: =$D$7*$G$127 -> 69.975 | E127: =$E$7*$G$127 -> 55.575 | F127: è | G127: 0.045
A128: 11th | B128: =$B$7*$G$128 -> 100.6 | C128: =$C$7*$G$128 -> 87.8 | D128: =$D$7*$G$128 -> 62.2 | E128: =$E$7*$G$128 -> 49.4 | F128: è | G128: 0.04
A129: 12th | B129: =$B$7*$G$129 -> 93.055 | C129: =$C$7*$G$129 -> 81.215 | D129: =$D$7*$G$129 -> 57.535 | E129: =$E$7*$G$129 -> 45.695 | F129: è | G129: 0.037
A130: 13th | B130: =$B$7*$G$130 -> 82.995 | C130: =$C$7*$G$130 -> 72.435 | D130: =$D$7*$G$130 -> 51.315 | E130: =$E$7*$G$130 -> 40.755 | F130: è | G130: 0.033
A131: 14th | B131: =$B$7*$G$131 -> 72.935 | C131: =$C$7*$G$131 -> 63.655 | D131: =$D$7*$G$131 -> 45.095 | E131: =$E$7*$G$131 -> 35.815 | F131: è | G131: 0.029
A132: 15th | B132: =$B$7*$G$132 -> 62.875 | C132: =$C$7*$G$132 -> 54.875 | D132: =$D$7*$G$132 -> 38.875 | E132: =$E$7*$G$132 -> 30.875 | F132: è | G132: 0.025
A133: 16th | B133: =$B$7*$G$133 -> 52.815 | C133: =$C$7*$G$133 -> 46.095 | D133: =$D$7*$G$133 -> 32.655 | E133: =$E$7*$G$133 -> 25.935 | F133: è | G133: 0.021
A134: 17th | B134: =$B$7*$G$134 -> 42.755 | C134: =$C$7*$G$134 -> 37.315 | D134: =$D$7*$G$134 -> 26.435 | E134: =$E$7*$G$134 -> 20.995 | F134: è | G134: 0.017
A135: 18th | B135: =$B$7*$G$135 -> 35.21 | C135: =$C$7*$G$135 -> 30.73 | D135: =$D$7*$G$135 -> 21.77 | E135: =$E$7*$G$135 -> 17.29 | F135: è | G135: 0.014
A136: 19th | B136: =$B$7*$G$136 -> 30.18 | C136: =$C$7*$G$136 -> 26.34 | D136: =$D$7*$G$136 -> 18.66 | E136: =$E$7*$G$136 -> 14.82 | F136: è | G136: 0.012
A137: 20th | B137: =$B$7*$G$137 -> 25.15 | C137: =$C$7*$G$137 -> 21.95 | D137: =$D$7*$G$137 -> 15.55 | E137: =$E$7*$G$137 -> 12.35 | F137: è | G137: 0.01
A138: Totals | B138: =SUM(B118:B137) -> 2515 | C138: =SUM(C118:C137) -> 2195 | D138: 1555 | E138: 1235 | F138: =B138+C138+D138+E138 -> 7500 | G138: =SUM(G118:G137) -> 1
A140: For 1201 or More riders 30 places
A141: Placings | B141: 1D | C141: 2D | D141: 3D | E141: 4D
A142: 1st | B142: =$B$7*$G$142 -> 301.8 | C142: =$C$7*$G$142 -> 263.4 | D142: =$D$7*$G$142 -> 186.6 | E142: =$E$7*$G$142 -> 148.2 | F142: è | G142: 0.12
A143: 2nd | B143: =$B$7*$G$143 -> 238.925 | C143: =$C$7*$G$143 -> 208.525 | D143: =$D$7*$G$143 -> 147.725 | E143: =$E$7*$G$143 -> 117.325 | F143: è | G143: 0.095
A144: 3rd | B144: =$B$7*$G$144 -> 183.595 | C144: =$C$7*$G$144 -> 160.235 | D144: =$D$7*$G$144 -> 113.515 | E144: =$E$7*$G$144 -> 90.155 | F144: è | G144: 0.073
A145: 4th | B145: =$B$7*$G$145 -> 155.93 | C145: =$C$7*$G$145 -> 136.09 | D145: =$D$7*$G$145 -> 96.41 | E145: =$E$7*$G$145 -> 76.57 | F145: è | G145: 0.062
A146: 5th | B146: =$B$7*$G$146 -> 125.75 | C146: =$C$7*$G$146 -> 109.75 | D146: =$D$7*$G$146 -> 77.75 | E146: =$E$7*$G$146 -> 61.75 | F146: è | G146: 0.05
A147: 6th | B147: =$B$7*$G$147 -> 113.175 | C147: =$C$7*$G$147 -> 98.775 | D147: =$D$7*$G$147 -> 69.975 | E147: =$E$7*$G$147 -> 55.575 | F147: è | G147: 0.045
A148: 7th | B148: =$B$7*$G$148 -> 108.145 | C148: =$C$7*$G$148 -> 94.385 | D148: =$D$7*$G$148 -> 66.865 | E148: =$E$7*$G$148 -> 53.105 | F148: è | G148: 0.043
A149: 8th | B149: =$B$7*$G$149 -> 100.6 | C149: =$C$7*$G$149 -> 87.8 | D149: =$D$7*$G$149 -> 62.2 | E149: =$E$7*$G$149 -> 49.4 | F149: è | G149: 0.04
A150: 9th | B150: =$B$7*$G$150 -> 93.055 | C150: =$C$7*$G$150 -> 81.215 | D150: =$D$7*$G$150 -> 57.535 | E150: =$E$7*$G$150 -> 45.695 | F150: è | G150: 0.037
A151: 10th | B151: =$B$7*$G$151 -> 88.025 | C151: =$C$7*$G$151 -> 76.825 | D151: =$D$7*$G$151 -> 54.425 | E151: =$E$7*$G$151 -> 43.225 | F151: è | G151: 0.035
A152: 11th | B152: =$B$7*$G$152 -> 82.995 | C152: =$C$7*$G$152 -> 72.435 | D152: =$D$7*$G$152 -> 51.315 | E152: =$E$7*$G$152 -> 40.755 | F152: è | G152: 0.033
A153: 12th | B153: =$B$7*$G$153 -> 77.965 | C153: =$C$7*$G$153 -> 68.045 | D153: =$D$7*$G$153 -> 48.205 | E153: =$E$7*$G$153 -> 38.285 | F153: è | G153: 0.031
A154: 13th | B154: =$B$7*$G$154 -> 72.935 | C154: =$C$7*$G$154 -> 63.655 | D154: =$D$7*$G$154 -> 45.095 | E154: =$E$7*$G$154 -> 35.815 | F154: è | G154: 0.029
A155: 14th | B155: =$B$7*$G$155 -> 67.905 | C155: =$C$7*$G$155 -> 59.265 | D155: =$D$7*$G$155 -> 41.985 | E155: =$E$7*$G$155 -> 33.345 | F155: è | G155: 0.027
A156: 15th | B156: =$B$7*$G$156 -> 62.875 | C156: =$C$7*$G$156 -> 54.875 | D156: =$D$7*$G$156 -> 38.875 | E156: =$E$7*$G$156 -> 30.875 | F156: è | G156: 0.025
A157: 16th | B157: =$B$7*$G$157 -> 60.36 | C157: =$C$7*$G$157 -> 52.68 | D157: =$D$7*$G$157 -> 37.32 | E157: =$E$7*$G$157 -> 29.64 | F157: è | G157: 0.024
A158: 17th | B158: =$B$7*$G$158 -> 57.845 | C158: =$C$7*$G$158 -> 50.485 | D158: =$D$7*$G$158 -> 35.765 | E158: =$E$7*$G$158 -> 28.405 | F158: è | G158: 0.023
A159: 18th | B159: =$B$7*$G$159 -> 55.33 | C159: =$C$7*$G$159 -> 48.29 | D159: =$D$7*$G$159 -> 34.21 | E159: =$E$7*$G$159 -> 27.17 | F159: è | G159: 0.022
A160: 19th | B160: =$B$7*$G$160 -> 52.815 | C160: =$C$7*$G$160 -> 46.095 | D160: =$D$7*$G$160 -> 32.655 | E160: =$E$7*$G$160 -> 25.935 | F160: è | G160: 0.021
A161: 20th | B161: =$B$7*$G$161 -> 50.3 | C161: =$C$7*$G$161 -> 43.9 | D161: =$D$7*$G$161 -> 31.1 | E161: =$E$7*$G$161 -> 24.7 | F161: è | G161: 0.02
A162: 21st | B162: =$B$7*$G$162 -> 47.785 | C162: =$C$7*$G$162 -> 41.705 | D162: =$D$7*$G$162 -> 29.545 | E162: =$E$7*$G$162 -> 23.465 | F162: è | G162: 0.019
A163: 22nd | B163: =$B$7*$G$163 -> 45.27 | C163: =$C$7*$G$163 -> 39.51 | D163: =$D$7*$G$163 -> 27.99 | E163: =$E$7*$G$163 -> 22.23 | F163: è | G163: 0.018
A164: 23rd | B164: =$B$7*$G$164 -> 42.755 | C164: =$C$7*$G$164 -> 37.315 | D164: =$D$7*$G$164 -> 26.435 | E164: =$E$7*$G$164 -> 20.995 | F164: è | G164: 0.017
A165: 24th | B165: =$B$7*$G$165 -> 40.24 | C165: =$C$7*$G$165 -> 35.12 | D165: =$D$7*$G$165 -> 24.88 | E165: =$E$7*$G$165 -> 19.76 | F165: è | G165: 0.016
A166: 25th | B166: =$B$7*$G$166 -> 37.725 | C166: =$C$7*$G$166 -> 32.925 | D166: =$D$7*$G$166 -> 23.325 | E166: =$E$7*$G$166 -> 18.525 | F166: è | G166: 0.015
A167: 26th | B167: =$B$7*$G$167 -> 35.21 | C167: =$C$7*$G$167 -> 30.73 | D167: =$D$7*$G$167 -> 21.77 | E167: =$E$7*$G$167 -> 17.29 | F167: è | G167: 0.014
A168: 27th | B168: =$B$7*$G$168 -> 32.695 | C168: =$C$7*$G$168 -> 28.535 | D168: =$D$7*$G$168 -> 20.215 | E168: =$E$7*$G$168 -> 16.055 | F168: è | G168: 0.013
A169: 28th | B169: =$B$7*$G$169 -> 30.18 | C169: =$C$7*$G$169 -> 26.34 | D169: =$D$7*$G$169 -> 18.66 | E169: =$E$7*$G$169 -> 14.82 | F169: è | G169: 0.012
A170: 29th | B170: =$B$7*$G$170 -> 27.665 | C170: =$C$7*$G$170 -> 24.145 | D170: =$D$7*$G$170 -> 17.105 | E170: =$E$7*$G$170 -> 13.585 | F170: è | G170: 0.011
A171: 30th | B171: =$B$7*$G$171 -> 25.15 | C171: =$C$7*$G$171 -> 21.95 | D171: =$D$7*$G$171 -> 15.55 | E171: =$E$7*$G$171 -> 12.35 | F171: è | G171: 0.01
A172: Totals | B172: =SUM(B142:B171) -> 2515 | C172: =SUM(C142:C171) -> 2195 | D172: =SUM(D142:D171) -> 1555 | E172: =SUM(E142:E171) -> 1235 | F172: =B172+C172+D172+E172 -> 7500 | G172: =SUM(G142:G171) -> 1

Sheet 5D Payout BBR
A1: 5D Payout BBR
A2: Entry Fee | B2: # Entries | C2: % Payback | D2: $ From Entry | E2: Added $ | F2: Total Payout | G2: Total $ Held
A3: 50 | B3: 172 | C3: 1 | D3: =$A$3*$C$3*$B$3 -> 8600 | F3: =($A$3*$C$3)*$B$3+$E$3 -> 8600 | G3: =$A$3*(100%-$C$3)*$B$3 -> 0
A5: % in each D | B5: 0.3 | C5: 0.25 | D5: 0.2 | E5: 0.15 | F5: 0.1 | G5: Total % Payout | H5: =SUM(B5:F5) -> 1
B6: 1D | C6: 2D | D6: 3D | E6: 4D | F6: 5D
B7: =(($A$3*$B$3*$C$3*$B$5)+($E$3*$B$5)) -> 2580 | C7: =(($A$3*$B$3*$C$3*$C$5)+($E$3*$C$5)) -> 2150 | D7: =(($A$3*$B$3*$C$3*$D$5)+($E$3*$D$5)) -> 1720 | E7: =(($A$3*$B$3*$C$3*$E$5)+($E$3*$E$5)) -> 1290 | F7: =(($A$3*$B$3*$C$3*$F$5)+($E$3*$F$5)) -> 860
A8: Totals | B8: =SUM(B7) -> 2580 | C8: =SUM(C7) -> 2150 | D8: 1720 | E8: 1290 | F8: 860 | G8: =SUM(B8:F8) -> 8600
A10: For 1-25 riders 1 place
A11: Placings | B11: 1D | C11: 2D | D11: 3D | E11: 4D | F11: 5D
A12: 1st | B12: =$B$7*$H$12 -> 2580 | C12: =$C$7*$H$12 -> 2150 | D12: =$D$7*$H$12 -> 1720 | E12: =$E$7*$H$12 -> 1290 | F12: =$F$7*$H$12 -> 860 | G12: è | H12: 1
A13: Totals | B13: =SUM(B12:B12) -> 2580 | C13: =SUM(C12:C12) -> 2150 | D13: =SUM(D12:D12) -> 1720 | E13: =SUM(E12:E12) -> 1290 | F13: =SUM(F12) -> 860 | G13: =SUM(B13:F13) -> 8600 | H13: =SUM(H12) -> 1
A15: For 26-50 riders 2 places
A16: Placings | B16: 1D | C16: 2D | D16: 3D | E16: 4D | F16: 5D
A17: 1st | B17: =$B$7*$H$17 -> 1548 | C17: =$C$7*$H$17 -> 1290 | D17: =$D$7*$H$17 -> 1032 | E17: =$E$7*$H$17 -> 774 | F17: =$F$7*$H$17 -> 516 | G17: è | H17: 0.6
A18: 2nd | B18: =$B$7*$H$18 -> 1032 | C18: =$C$7*$H$18 -> 860 | D18: =$D$7*$H$18 -> 688 | E18: =$E$7*$H$18 -> 516 | F18: =$F$7*$H$18 -> 344 | G18: è | H18: 0.4
A19: Totals | B19: =SUM(B17:B18) -> 2580 | C19: =SUM(C17:C18) -> 2150 | D19: =SUM(D17:D18) -> 1720 | E19: =SUM(E17:E18) -> 1290 | F19: =SUM(F17:F18) -> 860 | G19: =SUM(B19:F19) -> 8600 | H19: =SUM(H17:H18) -> 1
A21: For 51-100 riders 3 places
A22: Placings | B22: 1D | C22: 2D | D22: 3D | E22: 4D | F22: 5D
A23: 1st | B23: =$B$7*$H$23 -> 1290 | C23: =$C$7*$H$23 -> 1075 | D23: =$D$7*$H$23 -> 860 | E23: =$E$7*$H$23 -> 645 | F23: =$F$7*$H$23 -> 430 | G23: è | H23: 0.5
A24: 2nd | B24: =$B$7*$H$24 -> 774 | C24: =$C$7*$H$24 -> 645 | D24: =$D$7*$H$24 -> 516 | E24: =$E$7*$H$24 -> 387 | F24: =$F$7*$H$24 -> 258 | G24: è | H24: 0.3
A25: 3rd | B25: =$B$7*$H$25 -> 516 | C25: =$C$7*$H$25 -> 430 | D25: =$D$7*$H$25 -> 344 | E25: =$E$7*$H$25 -> 258 | F25: =$F$7*$H$25 -> 172 | G25: è | H25: 0.2
A26: Totals | B26: =SUM(B23:B25) -> 2580 | C26: =SUM(C23:C25) -> 2150 | D26: =SUM(D23:D25) -> 1720 | E26: =SUM(E23:E25) -> 1290 | F26: =SUM(F23:F25) -> 860 | G26: =SUM(B26:F26) -> 8600 | H26: =SUM(H23:H25) -> 1
A28: For 101-143 riders 4 places
A29: Placings | B29: 1D | C29: 2D | D29: 3D | E29: 4D | F29: 5D
A30: 1st | B30: =$B$7*$H$30 -> 1032 | C30: =$C$7*$H$30 -> 860 | D30: =$D$7*$H$30 -> 688 | E30: =$E$7*$H$30 -> 516 | F30: =$F$7*$H$30 -> 344 | G30: è | H30: 0.4
A31: 2nd | B31: =$B$7*$H$31 -> 774 | C31: =$C$7*$H$31 -> 645 | D31: =$D$7*$H$31 -> 516 | E31: =$E$7*$H$31 -> 387 | F31: =$F$7*$H$31 -> 258 | G31: è | H31: 0.3
A32: 3rd | B32: =$B$7*$H$32 -> 516 | C32: =$C$7*$H$32 -> 430 | D32: =$D$7*$H$32 -> 344 | E32: =$E$7*$H$32 -> 258 | F32: =$F$7*$H$32 -> 172 | G32: è | H32: 0.2
A33: 4th | B33: =$B$7*$H$33 -> 258 | C33: =$C$7*$H$33 -> 215 | D33: =$D$7*$H$33 -> 172 | E33: =$E$7*$H$33 -> 129 | F33: =$F$7*$H$33 -> 86 | G33: è | H33: 0.1
A34: Totals | B34: =SUM(B30:B33) -> 2580 | C34: =SUM(C30:C33) -> 2150 | D34: =SUM(D30:D33) -> 1720 | E34: =SUM(E30:E33) -> 1290 | F34: =SUM(F30:F33) -> 860 | G34: =SUM(B34:F34) -> 8600 | H34: =SUM(H30:H33) -> 1
A36: For 144-200 riders 5 places
A37: Placings | B37: 1D | C37: 2D | D37: 3D | E37: 4D | F37: 5D
A38: 1st | B38: =$B$7*$H$38 -> 851.4 | C38: =$C$7*$H$38 -> 709.5 | D38: 709.5 | E38: =$E$7*$H$38 -> 425.7 | F38: =$F$7*$H$38 -> 283.8 | G38: è | H38: 0.33
A39: 2nd | B39: =$B$7*$H$39 -> 696.6 | C39: =$C$7*$H$39 -> 580.5 | D39: 580.5 | E39: =$E$7*$H$39 -> 348.3 | F39: =$F$7*$H$39 -> 232.2 | G39: è | H39: 0.27
A40: 3rd | B40: =$B$7*$H$40 -> 516 | C40: =$C$7*$H$40 -> 430 | D40: 430 | E40: =$E$7*$H$40 -> 258 | F40: =$F$7*$H$40 -> 172 | G40: è | H40: 0.2
A41: 4th | B41: =$B$7*$H$41 -> 335.4 | C41: =$C$7*$H$41 -> 279.5 | D41: 279.5 | E41: =$E$7*$H$41 -> 167.7 | F41: =$F$7*$H$41 -> 111.8 | G41: è | H41: 0.13
A42: 5th | B42: =$B$7*$H$42 -> 180.6 | C42: =$C$7*$H$42 -> 150.5 | D42: 150.5 | E42: =$E$7*$H$42 -> 90.3 | F42: =$F$7*$H$42 -> 60.2 | G42: è | H42: 0.07
A43: Totals | B43: =SUM(B38:B42) -> 2580 | C43: =SUM(C38:C42) -> 2150 | D43: =SUM(D38:D42) -> 2150 | E43: =SUM(E38:E42) -> 1290 | F43: =SUM(F38:F42) -> 860 | G43: =SUM(B43:F43) -> 9030 | H43: =SUM(H38:H42) -> 1
A45: For 201-250 riders 6 places
A46: Placings | B46: 1D | C46: 2D | D46: 3D | E46: 4D | F46: 5D
A47: 1st | B47: =$B$7*$H$47 -> 748.2 | C47: =$C$7*$H$47 -> 623.5 | D47: =$D$7*$H$47 -> 498.8 | E47: =$E$7*$H$47 -> 374.1 | F47: =$F$7*$H$47 -> 249.4 | G47: è | H47: 0.29
A48: 2nd | B48: =$B$7*$H$48 -> 619.2 | C48: =$C$7*$H$48 -> 516 | D48: =$D$7*$H$48 -> 412.8 | E48: =$E$7*$H$48 -> 309.6 | F48: =$F$7*$H$48 -> 206.4 | G48: è | H48: 0.24
A49: 3rd | B49: =$B$7*$H$49 -> 490.2 | C49: =$C$7*$H$49 -> 408.5 | D49: =$D$7*$H$49 -> 326.8 | E49: =$E$7*$H$49 -> 245.1 | F49: =$F$7*$H$49 -> 163.4 | G49: è | H49: 0.19
A50: 4th | B50: =$B$7*$H$50 -> 361.2 | C50: =$C$7*$H$50 -> 301 | D50: =$D$7*$H$50 -> 240.8 | E50: =$E$7*$H$50 -> 180.6 | F50: =$F$7*$H$50 -> 120.4 | G50: è | H50: 0.14
A51: 5th | B51: =$B$7*$H$51 -> 232.2 | C51: =$C$7*$H$51 -> 193.5 | D51: =$D$7*$H$51 -> 154.8 | E51: =$E$7*$H$51 -> 116.1 | F51: =$F$7*$H$51 -> 77.4 | G51: è | H51: 0.09
A52: 6th | B52: =$B$7*$H$52 -> 129 | C52: =$C$7*$H$52 -> 107.5 | D52: =$D$7*$H$52 -> 86 | E52: =$E$7*$H$52 -> 64.5 | F52: =$F$7*$H$52 -> 43 | G52: è | H52: 0.05
A53: Totals | B53: =SUM(B47:B52) -> 2580 | C53: =SUM(C47:C52) -> 2150 | D53: =SUM(D47:D52) -> 1720 | E53: =SUM(E47:E52) -> 1290 | F53: =SUM(F47:F52) -> 860 | G53: =SUM(B53:F53) -> 8600 | H53: =SUM(H47:H52) -> 1
A55: For 251-333 riders 8 places
A56: Placings | B56: 1D | C56: 2D | D56: 3D | E56: 4D | F56: 5D
A57: 1st | B57: =$B$7*$H$57 -> 619.2 | C57: =$C$7*$H$57 -> 516 | D57: =$D$7*$H$57 -> 412.8 | E57: =$E$7*$H$57 -> 309.6 | F57: =$F$7*$H$57 -> 206.4 | G57: è | H57: 0.24
A58: 2nd | B58: =$B$7*$H$58 -> 516 | C58: =$C$7*$H$58 -> 430 | D58: =$D$7*$H$58 -> 344 | E58: =$E$7*$H$58 -> 258 | F58: =$F$7*$H$58 -> 172 | G58: è | H58: 0.2
A59: 3rd | B59: =$B$7*$H$59 -> 438.6 | C59: =$C$7*$H$59 -> 365.5 | D59: =$D$7*$H$59 -> 292.4 | E59: =$E$7*$H$59 -> 219.3 | F59: =$F$7*$H$59 -> 146.2 | G59: è | H59: 0.17
A60: 4th | B60: =$B$7*$H$60 -> 335.4 | C60: =$C$7*$H$60 -> 279.5 | D60: =$D$7*$H$60 -> 223.6 | E60: =$E$7*$H$60 -> 167.7 | F60: =$F$7*$H$60 -> 111.8 | G60: è | H60: 0.13
A61: 5th | B61: =$B$7*$H$61 -> 258 | C61: =$C$7*$H$61 -> 215 | D61: =$D$7*$H$61 -> 172 | E61: =$E$7*$H$61 -> 129 | F61: =$F$7*$H$61 -> 86 | G61: è | H61: 0.1
A62: 6th | B62: =$B$7*$H$62 -> 180.6 | C62: =$C$7*$H$62 -> 150.5 | D62: =$D$7*$H$62 -> 120.4 | E62: =$E$7*$H$62 -> 90.3 | F62: =$F$7*$H$62 -> 60.2 | G62: è | H62: 0.07
A63: 7th | B63: =$B$7*$H$63 -> 129 | C63: =$C$7*$H$63 -> 107.5 | D63: =$D$7*$H$63 -> 86 | E63: =$E$7*$H$63 -> 64.5 | F63: =$F$7*$H$63 -> 43 | G63: è | H63: 0.05
A64: 8th | B64: =$B$7*$H$64 -> 103.2 | C64: =$C$7*$H$64 -> 86 | D64: =$D$7*$H$64 -> 68.8 | E64: =$E$7*$H$64 -> 51.6 | F64: =$F$7*$H$64 -> 34.4 | G64: è | H64: 0.04
A65: Totals | B65: =SUM(B57:B64) -> 2580 | C65: =SUM(C57:C64) -> 2150 | D65: =SUM(D57:D64) -> 1720 | E65: =SUM(E57:E64) -> 1290 | F65: =SUM(F57:F64) -> 860 | G65: =SUM(B65:F65) -> 8600 | H65: =SUM(H57:H64) -> 1
A67: For 334-500 riders 10 places
A68: Placings | B68: 1D | C68: 2D | D68: 3D | E68: 4D | F68: 5D
A69: 1st | B69: =$B$7*$H$69 -> 541.8 | C69: =$C$7*$H$69 -> 451.5 | D69: =$D$7*$H$69 -> 361.2 | E69: =$E$7*$H$69 -> 270.9 | F69: =$F$7*$H$69 -> 180.6 | G69: è | H69: 0.21
A70: 2nd | B70: =$B$7*$H$70 -> 464.4 | C70: =$C$7*$H$70 -> 387 | D70: =$D$7*$H$70 -> 309.6 | E70: =$E$7*$H$70 -> 232.2 | F70: =$F$7*$H$70 -> 154.8 | G70: è | H70: 0.18
A71: 3rd | B71: =$B$7*$H$71 -> 387 | C71: =$C$7*$H$71 -> 322.5 | D71: =$D$7*$H$71 -> 258 | E71: =$E$7*$H$71 -> 193.5 | F71: =$F$7*$H$71 -> 129 | G71: è | H71: 0.15
A72: 4th | B72: =$B$7*$H$72 -> 309.6 | C72: =$C$7*$H$72 -> 258 | D72: =$D$7*$H$72 -> 206.4 | E72: =$E$7*$H$72 -> 154.8 | F72: =$F$7*$H$72 -> 103.2 | G72: è | H72: 0.12
A73: 5th | B73: =$B$7*$H$73 -> 232.2 | C73: =$C$7*$H$73 -> 193.5 | D73: =$D$7*$H$73 -> 154.8 | E73: =$E$7*$H$73 -> 116.1 | F73: =$F$7*$H$73 -> 77.4 | G73: è | H73: 0.09
A74: 6th | B74: =$B$7*$H$74 -> 180.6 | C74: =$C$7*$H$74 -> 150.5 | D74: =$D$7*$H$74 -> 120.4 | E74: =$E$7*$H$74 -> 90.3 | F74: =$F$7*$H$74 -> 60.2 | G74: è | H74: 0.07
A75: 7th | B75: =$B$7*$H$75 -> 154.8 | C75: =$C$7*$H$75 -> 129 | D75: =$D$7*$H$75 -> 103.2 | E75: =$E$7*$H$75 -> 77.4 | F75: =$F$7*$H$75 -> 51.6 | G75: è | H75: 0.06
A76: 8th | B76: =$B$7*$H$76 -> 129 | C76: =$C$7*$H$76 -> 107.5 | D76: =$D$7*$H$76 -> 86 | E76: =$E$7*$H$76 -> 64.5 | F76: =$F$7*$H$76 -> 43 | G76: è | H76: 0.05
A77: 9th | B77: =$B$7*$H$77 -> 103.2 | C77: =$C$7*$H$77 -> 86 | D77: =$D$7*$H$77 -> 68.8 | E77: =$E$7*$H$77 -> 51.6 | F77: =$F$7*$H$77 -> 34.4 | G77: è | H77: 0.04
A78: 10th | B78: =$B$7*$H$78 -> 77.4 | C78: =$C$7*$H$78 -> 64.5 | D78: =$D$7*$H$78 -> 51.6 | E78: =$E$7*$H$78 -> 38.7 | F78: =$F$7*$H$78 -> 25.8 | G78: è | H78: 0.03
A79: Totals | B79: =SUM(B69:B78) -> 2580 | C79: =SUM(C69:C78) -> 2150 | D79: 1720 | E79: 1290 | F79: 860 | G79: =SUM(B79:F79) -> 8600 | H79: =SUM(H69:H78) -> 1
A81: For 501-666 riders 12 places
A82: Placings | B82: 1D | C82: 2D | D82: 3D | E82: 4D | F82: 5D
A83: 1st | B83: =$B$7*$H$83 -> 490.2 | C83: =$C$7*$H$83 -> 408.5 | D83: =$D$7*$H$83 -> 326.8 | E83: =$E$7*$H$83 -> 245.1 | F83: =$F$7*$H$83 -> 163.4 | G83: è | H83: 0.19
A84: 2nd | B84: =$B$7*$H$84 -> 387 | C84: =$C$7*$H$84 -> 322.5 | D84: =$D$7*$H$84 -> 258 | E84: =$E$7*$H$84 -> 193.5 | F84: =$F$7*$H$84 -> 129 | G84: è | H84: 0.15
A85: 3rd | B85: =$B$7*$H$85 -> 309.6 | C85: =$C$7*$H$85 -> 258 | D85: =$D$7*$H$85 -> 206.4 | E85: =$E$7*$H$85 -> 154.8 | F85: =$F$7*$H$85 -> 103.2 | G85: è | H85: 0.12
A86: 4th | B86: =$B$7*$H$86 -> 258 | C86: =$C$7*$H$86 -> 215 | D86: =$D$7*$H$86 -> 172 | E86: =$E$7*$H$86 -> 129 | F86: =$F$7*$H$86 -> 86 | G86: è | H86: 0.1
A87: 5th | B87: =$B$7*$H$87 -> 232.2 | C87: =$C$7*$H$87 -> 193.5 | D87: =$D$7*$H$87 -> 154.8 | E87: =$E$7*$H$87 -> 116.1 | F87: =$F$7*$H$87 -> 77.4 | G87: è | H87: 0.09
A88: 6th | B88: =$B$7*$H$88 -> 206.4 | C88: =$C$7*$H$88 -> 172 | D88: =$D$7*$H$88 -> 137.6 | E88: =$E$7*$H$88 -> 103.2 | F88: =$F$7*$H$88 -> 68.8 | G88: è | H88: 0.08
A89: 7th | B89: =$B$7*$H$89 -> 180.6 | C89: =$C$7*$H$89 -> 150.5 | D89: =$D$7*$H$89 -> 120.4 | E89: =$E$7*$H$89 -> 90.3 | F89: =$F$7*$H$89 -> 60.2 | G89: è | H89: 0.07
A90: 8th | B90: =$B$7*$H$90 -> 154.8 | C90: =$C$7*$H$90 -> 129 | D90: =$D$7*$H$90 -> 103.2 | E90: =$E$7*$H$90 -> 77.4 | F90: =$F$7*$H$90 -> 51.6 | G90: è | H90: 0.06
A91: 9th | B91: =$B$7*$H$91 -> 129 | C91: =$C$7*$H$91 -> 107.5 | D91: =$D$7*$H$91 -> 86 | E91: =$E$7*$H$91 -> 64.5 | F91: =$F$7*$H$91 -> 43 | G91: è | H91: 0.05
A92: 10th | B92: =$B$7*$H$92 -> 103.2 | C92: =$C$7*$H$92 -> 86 | D92: =$D$7*$H$92 -> 68.8 | E92: =$E$7*$H$92 -> 51.6 | F92: =$F$7*$H$92 -> 34.4 | G92: è | H92: 0.04
A93: 11th | B93: =$B$7*$H$93 -> 77.4 | C93: =$C$7*$H$93 -> 64.5 | D93: =$D$7*$H$93 -> 51.6 | E93: =$E$7*$H$93 -> 38.7 | F93: =$F$7*$H$93 -> 25.8 | G93: è | H93: 0.03
A94: 12th | B94: =$B$7*$H$94 -> 51.6 | C94: =$C$7*$H$94 -> 43 | D94: =$D$7*$H$94 -> 34.4 | E94: =$E$7*$H$94 -> 25.8 | F94: =$F$7*$H$94 -> 17.2 | G94: è | H94: 0.02
A95: Totals | B95: =SUM(B83:B94) -> 2580 | C95: =SUM(C83:C94) -> 2150 | D95: =SUM(D83:D94) -> 1720 | E95: =SUM(E83:E94) -> 1290 | F95: =SUM(F83:F94) -> 860 | G95: =SUM(B95:F95) -> 8600 | H95: =SUM(H83:H94) -> 1
A97: For 667-1000 riders 15 places
A98: Placings | B98: 1D | C98: 2D | D98: 3D | E98: 4D | F98: 5D
A99: 1st | B99: =$B$7*$H$99 -> 464.4 | C99: =$C$7*$H$99 -> 387 | D99: =$D$7*$H$99 -> 309.6 | E99: =$E$7*$H$99 -> 232.2 | F99: =$F$7*$H$99 -> 154.8 | G99: è | H99: 0.18
A100: 2nd | B100: =$B$7*$H$100 -> 387 | C100: =$C$7*$H$100 -> 322.5 | D100: =$D$7*$H$100 -> 258 | E100: =$E$7*$H$100 -> 193.5 | F100: =$F$7*$H$100 -> 129 | G100: è | H100: 0.15
A101: 3rd | B101: =$B$7*$H$101 -> 309.6 | C101: =$C$7*$H$101 -> 258 | D101: =$D$7*$H$101 -> 206.4 | E101: =$E$7*$H$101 -> 154.8 | F101: =$F$7*$H$101 -> 103.2 | G101: è | H101: 0.12
A102: 4th | B102: =$B$7*$H$102 -> 258 | C102: =$C$7*$H$102 -> 215 | D102: =$D$7*$H$102 -> 172 | E102: =$E$7*$H$102 -> 129 | F102: =$F$7*$H$102 -> 86 | G102: è | H102: 0.1
A103: 5th | B103: =$B$7*$H$103 -> 219.3 | C103: =$C$7*$H$103 -> 182.75 | D103: =$D$7*$H$103 -> 146.2 | E103: =$E$7*$H$103 -> 109.65 | F103: =$F$7*$H$103 -> 73.1 | G103: è | H103: 0.085
A104: 6th | B104: =$B$7*$H$104 -> 180.6 | C104: =$C$7*$H$104 -> 150.5 | D104: =$D$7*$H$104 -> 120.4 | E104: =$E$7*$H$104 -> 90.3 | F104: =$F$7*$H$104 -> 60.2 | G104: è | H104: 0.07
A105: 7th | B105: =$B$7*$H$105 -> 154.8 | C105: =$C$7*$H$105 -> 129 | D105: =$D$7*$H$105 -> 103.2 | E105: =$E$7*$H$105 -> 77.4 | F105: =$F$7*$H$105 -> 51.6 | G105: è | H105: 0.06
A106: 8th | B106: =$B$7*$H$106 -> 129 | C106: =$C$7*$H$106 -> 107.5 | D106: =$D$7*$H$106 -> 86 | E106: =$E$7*$H$106 -> 64.5 | F106: =$F$7*$H$106 -> 43 | G106: è | H106: 0.05
A107: 9th | B107: =$B$7*$H$107 -> 109.65 | C107: =$C$7*$H$107 -> 91.375 | D107: =$D$7*$H$107 -> 73.1 | E107: =$E$7*$H$107 -> 54.825 | F107: =$F$7*$H$107 -> 36.55 | G107: è | H107: 0.0425
A108: 10th | B108: =$B$7*$H$108 -> 90.3 | C108: =$C$7*$H$108 -> 75.25 | D108: =$D$7*$H$108 -> 60.2 | E108: =$E$7*$H$108 -> 45.15 | F108: =$F$7*$H$108 -> 30.1 | G108: è | H108: 0.035
A109: 11th | B109: =$B$7*$H$109 -> 77.4 | C109: =$C$7*$H$109 -> 64.5 | D109: =$D$7*$H$109 -> 51.6 | E109: =$E$7*$H$109 -> 38.7 | F109: =$F$7*$H$109 -> 25.8 | G109: è | H109: 0.03
A110: 12th | B110: =$B$7*$H$110 -> 64.5 | C110: =$C$7*$H$110 -> 53.75 | D110: =$D$7*$H$110 -> 43 | E110: =$E$7*$H$110 -> 32.25 | F110: =$F$7*$H$110 -> 21.5 | G110: è | H110: 0.025
A111: 13th | B111: =$B$7*$H$111 -> 51.6 | C111: =$C$7*$H$111 -> 43 | D111: =$D$7*$H$111 -> 34.4 | E111: =$E$7*$H$111 -> 25.8 | F111: =$F$7*$H$111 -> 17.2 | G111: è | H111: 0.02
A112: 14th | B112: =$B$7*$H$112 -> 45.15 | C112: =$C$7*$H$112 -> 37.625 | D112: =$D$7*$H$112 -> 30.1 | E112: =$E$7*$H$112 -> 22.575 | F112: =$F$7*$H$112 -> 15.05 | G112: è | H112: 0.0175
A113: 15th | B113: =$B$7*$H$113 -> 38.7 | C113: =$C$7*$H$113 -> 32.25 | D113: =$D$7*$H$113 -> 25.8 | E113: =$E$7*$H$113 -> 19.35 | F113: =$F$7*$H$113 -> 12.9 | G113: è | H113: 0.015
A114: Totals | B114: =SUM(B99:B113) -> 2580 | C114: =SUM(C99:C113) -> 2150 | D114: =SUM(D99:D113) -> 1720 | E114: =SUM(E99:E113) -> 1290 | F114: =SUM(F99:F113) -> 860 | G114: =SUM(B114:F114) -> 8600 | H114: =SUM(H99:H113) -> 1
A116: For 1001-1500 riders 20 places
A117: Placings | B117: 1D | C117: 2D | D117: 3D | E117: 4D | F117: 5D
A118: 1st | B118: =$B$7*$H$118 -> 361.2 | C118: =$C$7*$H$118 -> 301 | D118: =$D$7*$H$118 -> 240.8 | E118: =$E$7*$H$118 -> 180.6 | F118: =$F$7*$H$118 -> 120.4 | G118: è | H118: 0.14
A119: 2nd | B119: =$B$7*$H$119 -> 283.8 | C119: =$C$7*$H$119 -> 236.5 | D119: =$D$7*$H$119 -> 189.2 | E119: =$E$7*$H$119 -> 141.9 | F119: =$F$7*$H$119 -> 94.6 | G119: è | H119: 0.11
A120: 3rd | B120: =$B$7*$H$120 -> 232.2 | C120: =$C$7*$H$120 -> 193.5 | D120: =$D$7*$H$120 -> 154.8 | E120: =$E$7*$H$120 -> 116.1 | F120: =$F$7*$H$120 -> 77.4 | G120: è | H120: 0.09
A121: 4th | B121: =$B$7*$H$121 -> 198.66 | C121: =$C$7*$H$121 -> 165.55 | D121: =$D$7*$H$121 -> 132.44 | E121: =$E$7*$H$121 -> 99.33 | F121: =$F$7*$H$121 -> 66.22 | G121: è | H121: 0.077
A122: 5th | B122: =$B$7*$H$122 -> 180.6 | C122: =$C$7*$H$122 -> 150.5 | D122: =$D$7*$H$122 -> 120.4 | E122: =$E$7*$H$122 -> 90.3 | F122: =$F$7*$H$122 -> 60.2 | G122: è | H122: 0.07
A123: 6th | B123: =$B$7*$H$123 -> 167.7 | C123: =$C$7*$H$123 -> 139.75 | D123: =$D$7*$H$123 -> 111.8 | E123: =$E$7*$H$123 -> 83.85 | F123: =$F$7*$H$123 -> 55.9 | G123: è | H123: 0.065
A124: 7th | B124: =$B$7*$H$124 -> 154.8 | C124: =$C$7*$H$124 -> 129 | D124: =$D$7*$H$124 -> 103.2 | E124: =$E$7*$H$124 -> 77.4 | F124: =$F$7*$H$124 -> 51.6 | G124: è | H124: 0.06
A125: 8th | B125: =$B$7*$H$125 -> 141.9 | C125: =$C$7*$H$125 -> 118.25 | D125: =$D$7*$H$125 -> 94.6 | E125: =$E$7*$H$125 -> 70.95 | F125: =$F$7*$H$125 -> 47.3 | G125: è | H125: 0.055
A126: 9th | B126: =$B$7*$H$126 -> 129 | C126: =$C$7*$H$126 -> 107.5 | D126: =$D$7*$H$126 -> 86 | E126: =$E$7*$H$126 -> 64.5 | F126: =$F$7*$H$126 -> 43 | G126: è | H126: 0.05
A127: 10th | B127: =$B$7*$H$127 -> 116.1 | C127: =$C$7*$H$127 -> 96.75 | D127: =$D$7*$H$127 -> 77.4 | E127: =$E$7*$H$127 -> 58.05 | F127: =$F$7*$H$127 -> 38.7 | G127: è | H127: 0.045
A128: 11th | B128: =$B$7*$H$128 -> 103.2 | C128: =$C$7*$H$128 -> 86 | D128: =$D$7*$H$128 -> 68.8 | E128: =$E$7*$H$128 -> 51.6 | F128: =$F$7*$H$128 -> 34.4 | G128: è | H128: 0.04
A129: 12th | B129: =$B$7*$H$129 -> 95.46 | C129: =$C$7*$H$129 -> 79.55 | D129: =$D$7*$H$129 -> 63.64 | E129: =$E$7*$H$129 -> 47.73 | F129: =$F$7*$H$129 -> 31.82 | G129: è | H129: 0.037
A130: 13th | B130: =$B$7*$H$130 -> 85.14 | C130: =$C$7*$H$130 -> 70.95 | D130: =$D$7*$H$130 -> 56.76 | E130: =$E$7*$H$130 -> 42.57 | F130: =$F$7*$H$130 -> 28.38 | G130: è | H130: 0.033
A131: 14th | B131: =$B$7*$H$131 -> 74.82 | C131: =$C$7*$H$131 -> 62.35 | D131: =$D$7*$H$131 -> 49.88 | E131: =$E$7*$H$131 -> 37.41 | F131: =$F$7*$H$131 -> 24.94 | G131: è | H131: 0.029
A132: 15th | B132: =$B$7*$H$132 -> 64.5 | C132: =$C$7*$H$132 -> 53.75 | D132: =$D$7*$H$132 -> 43 | E132: =$E$7*$H$132 -> 32.25 | F132: =$F$7*$H$132 -> 21.5 | G132: è | H132: 0.025
A133: 16th | B133: =$B$7*$H$133 -> 54.18 | C133: =$C$7*$H$133 -> 45.15 | D133: =$D$7*$H$133 -> 36.12 | E133: =$E$7*$H$133 -> 27.09 | F133: =$F$7*$H$133 -> 18.06 | G133: è | H133: 0.021
A134: 17th | B134: =$B$7*$H$134 -> 43.86 | C134: =$C$7*$H$134 -> 36.55 | D134: =$D$7*$H$134 -> 29.24 | E134: =$E$7*$H$134 -> 21.93 | F134: =$F$7*$H$134 -> 14.62 | G134: è | H134: 0.017
A135: 18th | B135: =$B$7*$H$135 -> 36.12 | C135: =$C$7*$H$135 -> 30.1 | D135: =$D$7*$H$135 -> 24.08 | E135: =$E$7*$H$135 -> 18.06 | F135: =$F$7*$H$135 -> 12.04 | G135: è | H135: 0.014
A136: 19th | B136: =$B$7*$H$136 -> 30.96 | C136: =$C$7*$H$136 -> 25.8 | D136: =$D$7*$H$136 -> 20.64 | E136: =$E$7*$H$136 -> 15.48 | F136: =$F$7*$H$136 -> 10.32 | G136: è | H136: 0.012
A137: 20th | B137: =$B$7*$H$137 -> 25.8 | C137: =$C$7*$H$137 -> 21.5 | D137: =$D$7*$H$137 -> 17.2 | E137: =$E$7*$H$137 -> 12.9 | F137: =$F$7*$H$137 -> 8.6 | G137: è | H137: 0.01
A138: Totals | B138: =SUM(B118:B137) -> 2580 | C138: =SUM(C118:C137) -> 2150 | D138: 1720 | E138: 1290 | F138: 860 | G138: =SUM(B138:F138) -> 8600 | H138: =SUM(H118:H137) -> 1
A140: For 1501 or More riders 30 places
A141: Placings | B141: 1D | C141: 2D | D141: 3D | E141: 4D | F141: 5D
A142: 1st | B142: =$B$7*$H142 -> 309.6 | C142: =$C$7*$H142 -> 258 | D142: =$D$7*$H142 -> 206.4 | E142: =$E$7*$H142 -> 154.8 | F142: =$F$7*$H142 -> 103.2 | G142: è | H142: 0.12
A143: 2nd | B143: =$B$7*$H143 -> 245.1 | C143: 204.25 | D143: 163.4 | E143: 122.55 | F143: 81.7 | G143: è | H143: 0.095
A144: 3rd | B144: =$B$7*$H144 -> 188.34 | C144: 156.95 | D144: 125.56 | E144: 94.17 | F144: 62.78 | G144: è | H144: 0.073
A145: 4th | B145: =$B$7*$H145 -> 159.96 | C145: 133.3 | D145: 106.64 | E145: 79.98 | F145: 53.32 | G145: è | H145: 0.062
A146: 5th | B146: 129 | C146: 107.5 | D146: 86 | E146: 64.5 | F146: 43 | G146: è | H146: 0.05
A147: 6th | B147: 116.1 | C147: 96.75 | D147: 77.4 | E147: 58.05 | F147: 38.7 | G147: è | H147: 0.045
A148: 7th | B148: 110.94 | C148: 92.45 | D148: 73.96 | E148: 55.47 | F148: 36.98 | G148: è | H148: 0.043
A149: 8th | B149: 103.2 | C149: 86 | D149: 68.8 | E149: 51.6 | F149: 34.4 | G149: è | H149: 0.04
A150: 9th | B150: 95.46 | C150: 79.55 | D150: 63.64 | E150: 47.73 | F150: 31.82 | G150: è | H150: 0.037
A151: 10th | B151: 90.3 | C151: 75.25 | D151: 60.2 | E151: 45.15 | F151: 30.1 | G151: è | H151: 0.035
A152: 11th | B152: 85.14 | C152: 70.95 | D152: 56.76 | E152: 42.57 | F152: 28.38 | G152: è | H152: 0.033
A153: 12th | B153: 79.98 | C153: 66.65 | D153: 53.32 | E153: 39.99 | F153: 26.66 | G153: è | H153: 0.031
A154: 13th | B154: 74.82 | C154: 62.35 | D154: 49.88 | E154: 37.41 | F154: 24.94 | G154: è | H154: 0.029
A155: 14th | B155: 69.66 | C155: 58.05 | D155: 46.44 | E155: 34.83 | F155: 23.22 | G155: è | H155: 0.027
A156: 15th | B156: 64.5 | C156: 53.75 | D156: 43 | E156: 32.25 | F156: 21.5 | G156: è | H156: 0.025
A157: 16th | B157: 61.92 | C157: 51.6 | D157: 41.28 | E157: 30.96 | F157: 20.64 | G157: è | H157: 0.024
A158: 17th | B158: 59.34 | C158: 49.45 | D158: 39.56 | E158: 29.67 | F158: 19.78 | G158: è | H158: 0.023
A159: 18th | B159: 56.76 | C159: 47.3 | D159: 37.84 | E159: 28.38 | F159: 18.92 | G159: è | H159: 0.022
A160: 19th | B160: 54.18 | C160: 45.15 | D160: 36.12 | E160: 27.09 | F160: 18.06 | G160: è | H160: 0.021
A161: 20th | B161: 51.6 | C161: 43 | D161: 34.4 | E161: 25.8 | F161: 17.2 | G161: è | H161: 0.02
A162: 21st | B162: 49.02 | C162: 40.85 | D162: 32.68 | E162: 24.51 | F162: 16.34 | G162: è | H162: 0.019
A163: 22nd | B163: 46.44 | C163: 38.7 | D163: 30.96 | E163: 23.22 | F163: 15.48 | G163: è | H163: 0.018
A164: 23rd | B164: 43.86 | C164: 36.55 | D164: 29.24 | E164: 21.93 | F164: 14.62 | G164: è | H164: 0.017
A165: 24th | B165: 41.28 | C165: 34.4 | D165: 27.52 | E165: 20.64 | F165: 13.76 | G165: è | H165: 0.016
A166: 25th | B166: 38.7 | C166: 32.25 | D166: 25.8 | E166: 19.35 | F166: 12.9 | G166: è | H166: 0.015
A167: 26th | B167: 36.12 | C167: 30.1 | D167: 24.08 | E167: 18.06 | F167: 12.04 | G167: è | H167: 0.014
A168: 27th | B168: 33.54 | C168: 27.95 | D168: 22.36 | E168: 16.77 | F168: 11.18 | G168: è | H168: 0.013
A169: 28th | B169: 30.96 | C169: 25.8 | D169: 20.64 | E169: 15.48 | F169: 10.32 | G169: è | H169: 0.012
A170: 29th | B170: 28.38 | C170: 23.65 | D170: 18.92 | E170: 14.19 | F170: 9.46 | G170: è | H170: 0.011
A171: 30th | B171: 25.8 | C171: 21.5 | D171: 17.2 | E171: 12.9 | F171: 8.6 | G171: è | H171: 0.01
A172: Totals | B172: =SUM(B142:B171) -> 2580 | C172: =SUM(C142:C171) -> 2150 | D172: 1720 | E172: 1290 | F172: 860 | G172: =SUM(B172:F172) -> 8600 | H172: =SUM(H142:H171) -> 1

Sheet DON'T TOUCH (hidden)
A2: Yes | C2: S | D2: 5 | E2: X
C3: A | D3: 10
C4: Y | D4: 15
C5: P | D5: BP
D6: SCR
